Cogmind - Beta 16 @@@ ROGUE MODE // 2025.11.15 @ 20:55:01 // Winter2019/RPGLIKE Player: Rentaro Result: Destroyed by Tracker with Linked Autogun Performance ------------- Evolutions (9) 4500 Regions Visited (33) 6600 Robots Destroyed (959) 4795 Value Destroyed (50993) 50993 Prototype IDs (119) 2380 Alien Tech Used (4) 800 Bonus (30410) 30410 TOTAL SCORE: 100478 Bonus ------- Triggered High Security 1000 High Alert Combat Kills 18298 Follower Combat Kills 412 Destroyed Unchained 2000 Entered Garrisons 800 Used RIF Installer 2500 Aligned with FarCom 300 Met Data Miner 300 Met Zhirov 300 Found Hidden Lab 3000 Pursued by Intercept 1500 Cogmind --------- Core Integrity 0/600 Matter 158/300 Energy 30/320 System Corruption 11% Temperature Cool (0) Movement Flying (170) Ox2 Location -1/Access Parts ------- > --- POWER (2) -------- Light Fission Core Light Fission Core > --- PROPULSION (7) --- Improved Diametric Drive Improved Diametric Drive Improved Diametric Drive Improved Diametric Drive Improved Diametric Drive Improved Diametric Drive Improved Diametric Drive > --- UTILITY (12) ----- Structural Scanner Experimental Core Analyzer Femtoactuators Experimental Actuator Array Advanced Reaction Control System (fused) Experimental Phase Shifter Graphene Brace Advanced Force Field Relay Coupler [Grunt] (80) Relay Coupler [Sentry] (48) Relay Coupler [Demolisher] (64) Relay Coupler [Specialist] (78) > --- WEAPON (5) ------- Micro-nuke Launcher Falx Falx Falx Longsword +1 > --- INVENTORY (6) ---- Protomatter-47 Stasis Canceller Advanced Remote Datajack Falx Peak State ------------ > --- POWER ------------ Light Fission Core Light Fission Core > --- PROPULSION ------- Improved Diametric Drive Improved Diametric Drive Improved Diametric Drive Improved Diametric Drive Improved Diametric Drive Improved Diametric Drive Improved Diametric Drive > --- UTILITY ---------- Experimental Core Analyzer Femtoactuators Experimental Actuator Array Advanced Reaction Control System Experimental Phase Shifter Centrium Medium Armor Plating Graphene Brace Force Field Advanced Hacking Suite Experimental Hacking Suite Quantum Router Relay Coupler [Specialist] > --- WEAPON ----------- Falx Falx Falx Falx Longsword +1 > --- INVENTORY -------- Protomatter Protomatter Protomatter Advanced Actuator Array Stasis Canceller [Rating: 199] Favorites ----------- Power Light Fission Core Engine Light Deuterium Engine Power Core Light Fission Core Propulsion Nuclear Pulse Thruster Leg Aluminum Leg Wheel Wheel Hover Unit Hover Unit Flight Unit Nuclear Pulse Thruster Utility Graphene Brace Device Graphene Brace Processor Core Analyzer Hackware Hacking Suite Protection Centrium Medium Armor Plating Weapon Falx Energy Gun Medium Laser Ballistic Gun Autogun Launcher Grenade Launcher Special Weapon Advanced Remote Datajack Slashing Weapon Falx Piercing Weapon Spear Special Melee Weapon Datajack Build | -11 -10 -10 -10 -9 -8 -7 -7 -7 -7 -6 -6 -6 -6 -6 -5 -5 -5 -5 -5 -4 -4 -4 -4 -4 -3 -3 -3 -2 -2 -2 -1 -1 -1 ------- Run | Yrd Mat Min Exi Min Mat Fac Low Low Zio Pro Fac Low Low Dat Pro Fac Upp Upp Zhi Pro Fac Gar Fac Gar Res Arm Lab Res Gar Res Acc Gar Acc Slots Evolved 21 | 4 4 . . . 5 3 . . 1 . 1 . . . . 2 . . . . 1 . . . . . . . . . . . . Power 1 | . . . . . 1 . . . . . . . . . . . . . . . . . . . . . . . . . . . . Propulsion 6 | 1 2 . . . . 1 . . 1 . . . . . . 1 . . . . . . . . . . . . . . . . . Utility 10 | 1 1 . . . 3 2 . . . . 1 . . . . 1 . . . . 1 . . . . . . . . . . . . Weapon 4 | 2 1 . . . 1 . . . . . . . . . . . . . . . . . . . . . . . . . . . . Parts Attached 187 | 8 24 . 1 1 14 22 . 1 8 1 10 3 . . . 21 . . 1 . 14 3 . 1 9 10 4 1 2 10 2 15 1 Power 10 | 1 2 . . . 1 3 . . . . 2 . . . . 1 . . . . . . . . . . . . . . . . . Engine 7 | 1 2 . . . 1 3 . . . . . . . . . . . . . . . . . . . . . . . . . . . Core 3 | . . . . . . . . . . . 2 . . . . 1 . . . . . . . . . . . . . . . . . Reactor . | . . . . . . . . . . . . . . . . . . . . . . . . . . . . . . . . . . Propulsion 43 | 4 7 . . . 6 8 . . 1 . 1 . . . . 3 . . . . 6 . . . . 7 . . . . . . . Treads . | . . . . . . . . . . . . . . . . . . . . . . . . . . . . . . . . . . Leg 4 | 2 2 . . . . . . . . . . . . . . . . . . . . . . . . . . . . . . . . Wheel 2 | 2 . . . . . . . . . . . . . . . . . . . . . . . . . . . . . . . . . Hover 1 | . 1 . . . . . . . . . . . . . . . . . . . . . . . . . . . . . . . . Flight 36 | . 4 . . . 6 8 . . 1 . 1 . . . . 3 . . . . 6 . . . . 7 . . . . . . . Utility 95 | . 6 . . . 2 8 . . 6 . 6 2 . . . 12 . . 1 . 7 2 . 1 9 2 3 1 2 10 2 13 . Device 41 | . 2 . . . 1 4 . . . . 3 2 . . . 6 . . 1 . 4 1 . . 4 2 1 1 . 6 1 2 . Storage . | . . . . . . . . . . . . . . . . . . . . . . . . . . . . . . . . . . Processor 16 | . 3 . . . . 3 . . 5 . 2 . . . . 1 . . . . . . . . 1 . . . . 1 . . . Hackware 37 | . 1 . . . 1 1 . . 1 . 1 . . . . 5 . . . . 3 1 . 1 4 . 2 . 2 2 1 11 . Protection 1 | . . . . . . . . . . . . . . . . . . . . . . . . . . . . . . 1 . . . Artifact . | . . . . . . . . . . . . . . . . . . . . . . . . . . . . . . . . . . Weapon 39 | 3 9 . 1 1 5 3 . 1 1 1 1 1 . . . 5 . . . . 1 1 . . . 1 1 . . . . 2 1 Energy Gun 3 | 3 . . . . . . . . . . . . . . . . . . . . . . . . . . . . . . . . . Energy Cannon . | . . . . . . . . . . . . . . . . . . . . . . . . . . . . . . . . . . Ballistic Gun 10 | . 7 . . . . . . . . . . . . . . . . . . . . 1 . . . 1 . . . . . 1 . Ballistic Cannon . | . . . . . . . . . . . . . . . . . . . . . . . . . . . . . . . . . . Launcher 3 | . 1 . . 1 . . . . . . . . . . . . . . . . . . . . . . . . . . . . 1 Special Weapon 2 | . . . . . . . . . . . . . . . . . . . . . . . . . . . 1 . . . . 1 . Impact Weapon . | . . . . . . . . . . . . . . . . . . . . . . . . . . . . . . . . . . Slashing Weapon 15 | . . . 1 . 1 3 . 1 . 1 1 1 . . . 5 . . . . 1 . . . . . . . . . . . . Piercing Weapon 5 | . . . . . 4 . . . 1 . . . . . . . . . . . . . . . . . . . . . . . . Special Melee Weapon 1 | . 1 . . . . . . . . . . . . . . . . . . . . . . . . . . . . . . . . Unidentified Prototypes 33 | . . . . . 1 2 . . 7 . . 2 . . . 5 . . 2 . 3 . . . 2 . 4 . . 4 . 1 . Parts Lost 6 | . . . . . 1 1 . . 1 . . . . . . . . . . . . . . . 1 1 . . . 1 . . . Power . | . . . . . . . . . . . . . . . . . . . . . . . . . . . . . . . . . . Propulsion 2 | . . . . . 1 1 . . . . . . . . . . . . . . . . . . . . . . . . . . . Utility 4 | . . . . . . . . . 1 . . . . . . . . . . . . . . . 1 1 . . . 1 . . . Weapon . | . . . . . . . . . . . . . . . . . . . . . . . . . . . . . . . . . . Highest Loss Streak 1 | . . . . . 1 1 . . 1 . . . . . . . . . . . . . . . 1 1 . . . 1 . . . To Critical Strikes . | . . . . . . . . . . . . . . . . . . . . . . . . . . . . . . . . . . Average Backups 1 | . . 1 . . . . . . . . . 1 1 1 1 1 3 3 3 3 2 1 2 2 3 2 1 2 2 2 1 2 3 Power . | . . . . . . . . . . . . . . . . . 1 1 1 1 . . . . . . . . . . . . . Propulsion . | . . . . . . . . . . . . . . . . . . . . . . . . . . . . . . . . . . Utility 1 | . . . . . . . . . . . . 1 1 1 1 1 2 2 2 2 1 1 2 2 3 2 1 1 1 1 1 1 2 Weapon . | . . 1 . . . . . . . . . . . . . . . . . . . . . . . . . . . . . . . Tool/Special . | . . . . . . . . . . . . . . . . . . . . . . . . . . . . . . . . . . Unused Backups 5 | . . . . . . 1 . . . . . . . . . 1 . . . . . . . . . 3 . . . . . . . Power . | . . . . . . . . . . . . . . . . . . . . . . . . . . . . . . . . . . Propulsion 1 | . . . . . . . . . . . . . . . . . . . . . . . . . . 1 . . . . . . . Utility 3 | . . . . . . . . . . . . . . . . 1 . . . . . . . . . 2 . . . . . . . Weapon 1 | . . . . . . 1 . . . . . . . . . . . . . . . . . . . . . . . . . . . Tool/Special . | . . . . . . . . . . . . . . . . . . . . . . . . . . . . . . . . . . Average Slot Usage (%) 97 | . 92 100 93 78 86 98 100 100 99 100 98 100 100 100 100 98 100 100 100 100 99 99 100 100 99 99 98 100 97 99 96 99 99 Engine 3 | . 9 8 8 8 8 10 10 10 9 9 5 . . . . . . . . . . . . . . . . . . . . . . Core 4 | . . . . . . . . . . . 3 8 8 8 8 8 8 8 8 8 7 7 7 7 7 7 7 7 7 7 7 7 7 Flight 25 | . 13 33 33 33 23 23 25 25 25 28 27 26 26 26 26 27 28 28 28 28 26 26 26 26 26 26 26 26 26 26 26 26 26 Device 21 | . 5 8 8 8 9 19 25 25 24 23 24 27 30 30 30 28 28 28 28 28 23 26 26 26 24 23 24 26 26 26 26 21 20 Processor 6 | . 9 16 16 16 12 11 10 10 10 9 4 8 8 8 8 4 4 4 4 4 3 3 3 3 3 3 3 3 3 3 3 3 3 Hackware 10 | . 2 . . . 4 6 5 5 5 4 8 4 4 4 4 8 12 12 12 12 17 15 15 15 16 17 14 15 12 14 11 20 21 Energy Gun 1 | . 17 . . . . . . . . . . . . . . . . . . . . . . . . . . . . . . . . Ballistic Gun 1 | . 15 26 19 . . . . . . . . . . . . . . . . . . . . . . . . . . . . . . Slashing Weapon 17 | . . . 2 8 10 24 25 25 24 23 22 21 21 21 21 20 20 20 20 20 19 18 19 19 19 18 18 15 19 19 19 15 17 Piercing Weapon 1 | . . . . . 14 1 . . . . . . . . . . . . . . . . . . . . . . . . . . . Peak Build Rating 199 | 6 16 17 23 19 51 80 80 80 90 90 105 110 110 110 110 141 135 135 136 135 161 164 163 163 160 165 176 182 182 199 194 197 184 Average Rating 113 | 4 10 16 16 17 43 69 80 80 83 89 96 106 110 110 110 126 135 135 134 135 148 162 163 162 153 159 171 180 176 180 188 188 181 On Entrance 112 | . 6 16 16 17 19 51 80 80 80 89 90 105 110 110 110 110 139 135 135 135 135 161 163 163 159 160 161 175 177 181 187 193 184 Avg Prop Armor Cover (%) 2 | . . . . . . . . . 3 3 3 . . . . . . . . . . . . . . . . . . 1 . . 4 Naked Turns . | . . . . . . . . . . . . . . . . . . . . . . . . . . . . . . . . . . Heaviest Build 68 | 11 16 16 16 11 19 32 32 32 32 33 46 50 50 50 50 54 53 53 53 53 56 58 56 59 58 57 56 57 56 57 61 64 68 Greatest Support 69 | 31 31 21 21 21 29 40 40 40 41 41 48 52 52 52 52 59 59 59 59 59 59 59 59 59 59 59 59 59 64 64 64 69 69 Greatest Overweight (x) 2 | 1 1 . . . . 1 . . . . . . . . . 1 . . . . . . . . 1 . . . . 1 . . 2 Average Overweight (x) . | . . . . . . . . . . . . . . . . . . . . . . . . . . . . . . . . . . Largest Inventory Capacity 6 | 1 1 1 1 1 1 2 2 2 2 2 3 3 3 3 3 3 3 3 3 3 3 3 3 3 4 4 5 5 5 5 5 6 6 Average Capacity 2 | . 1 1 1 1 1 1 2 2 2 2 2 3 3 3 3 3 3 3 3 3 3 3 3 3 3 4 4 5 5 5 5 5 6 Most Carried 6 | . 1 1 1 1 1 2 2 2 2 2 3 3 3 3 3 3 3 3 3 3 3 3 3 3 4 4 5 5 5 5 5 6 6 Average Carried 2 | . . 1 . . . . 1 1 2 1 2 2 3 3 3 2 3 3 3 3 2 2 3 2 3 3 4 5 4 4 4 5 5 Final Capacity 6 | 1 1 1 1 1 1 2 2 2 2 2 3 3 3 3 3 3 3 3 3 3 3 3 3 3 4 4 5 5 5 5 5 6 6 Final Carried 6 | . 1 1 . . 1 2 2 2 2 1 3 3 3 3 3 3 3 3 3 3 3 3 3 3 3 4 5 5 5 5 5 6 4 Class Distribution -------------------- 40% | Wizard-Sprinter 22% | Hacker-Sprinter 21% | Machinist-Sprinter 6% | Scavenger-Sprinter 3% | Commander-Sprinter Dominant Class ---------------- Scavenger-Gunner | -10/Materials Scavenger-Sprinter | -10/Mines Scavenger-Sprinter | -10/Exiles Scavenger-Sprinter | -9/Mines Hacker-Sprinter | -8/Materials Hacker-Sprinter | -7/Factory Machinist-Sprinter | -7/Lower Caves Machinist-Sprinter | -7/Lower Caves Machinist-Sprinter | -7/Zion Machinist-Sprinter | -6/Proximity Caves Hacker-Sprinter | -6/Factory Machinist-Sprinter | -6/Lower Caves Machinist-Sprinter | -6/Lower Caves Machinist-Sprinter | -6/Data Miner Machinist-Sprinter | -5/Proximity Caves Machinist-Sprinter | -5/Factory Wizard-Sprinter | -5/Upper Caves Wizard-Sprinter | -5/Upper Caves Wizard-Sprinter | -5/Zhirov Wizard-Sprinter | -4/Proximity Caves Wizard-Sprinter | -4/Factory Wizard-Sprinter | -4/Garrison Wizard-Sprinter | -4/Factory Wizard-Sprinter | -4/Garrison Hacker-Sprinter | -3/Research Wizard-Sprinter | -3/Armory Wizard-Sprinter | -3/Lab Wizard-Sprinter | -2/Research Wizard-Sprinter | -2/Garrison Wizard-Sprinter | -2/Research Wizard-Sprinter | -1/Access Commander-Sprinter | -1/Garrison Bothacker-Sprinter | -1/Access Resources | -11 -10 -10 -10 -9 -8 -7 -7 -7 -7 -6 -6 -6 -6 -6 -5 -5 -5 -5 -5 -4 -4 -4 -4 -4 -3 -3 -3 -2 -2 -2 -1 -1 -1 ----------- Run | Yrd Mat Min Exi Min Mat Fac Low Low Zio Pro Fac Low Low Dat Pro Fac Upp Upp Zhi Pro Fac Gar Fac Gar Res Arm Lab Res Gar Res Acc Gar Acc Matter Collected 5512 | 280 1148 404 . 71 171 362 15 19 . 146 152 70 20 . 26 425 20 10 . 46 254 215 . 57 170 96 . 262 30 135 35 781 92 Remotely . | . . . . . . . . . . . . . . . . . . . . . . . . . . . . . . . . . . Salvage Created 44526 | 84 1518 244 . 73 1808 3675 174 685 . 462 2696 403 584 . 389 4396 1183 640 . 643 7959 1819 48 1462 1895 2195 . 293 2451 3738 578 1953 478 Parts 2373 | 3 99 18 . 7 119 241 20 39 . 36 127 19 15 . 44 223 47 37 . 47 349 96 7 84 93 162 7 18 91 164 60 63 38 Haulers Intercepted 34 | . 2 . . . 5 4 . . . . 5 . . . . 6 . . . . 8 . . . 2 . . . . 1 1 . . Recyclers Shooed 2 | . 1 . . . 1 . . . . . . . . . . . . . . . . . . . . . . . . . . . . Parts Field Recycled . | . . . . . . . . . . . . . . . . . . . . . . . . . . . . . . . . . . Retrieved Matter . | . . . . . . . . . . . . . . . . . . . . . . . . . . . . . . . . . . Parts Self-Destructed 301 | . . . . . . . 17 38 . 36 . 21 13 . 47 . 47 35 . 47 . . . . . . . . . . . . . Prevented . | . . . . . . . . . . . . . . . . . . . . . . . . . . . . . . . . . . Parts Restored . | . . . . . . . . . . . . . . . . . . . . . . . . . . . . . . . . . . Kills | -11 -10 -10 -10 -9 -8 -7 -7 -7 -7 -6 -6 -6 -6 -6 -5 -5 -5 -5 -5 -4 -4 -4 -4 -4 -3 -3 -3 -2 -2 -2 -1 -1 -1 ------- Run | Yrd Mat Min Exi Min Mat Fac Low Low Zio Pro Fac Low Low Dat Pro Fac Upp Upp Zhi Pro Fac Gar Fac Gar Res Arm Lab Res Gar Res Acc Gar Acc Combat Hostiles Destroyed 749 | . 28 10 . 3 25 73 6 16 . 12 32 7 7 . 22 64 27 14 . 13 108 33 1 36 33 47 1 4 34 51 14 20 8 Melee 708 | . . . . 3 25 73 6 16 . 12 32 7 7 . 22 64 27 14 . 13 106 33 1 36 33 47 1 4 34 51 14 20 7 Guns 37 | . 28 9 . . . . . . . . . . . . . . . . . . . . . . . . . . . . . . . AOE 4 | . . 1 . . . . . . . . . . . . . . . . . . 2 . . . . . . . . . . . 1 Classes Destroyed 25 | 2 7 1 . . 5 4 2 . . . 1 . . . . 1 . . . . 1 . . . . 1 . . . . . . . Worker 28 | . 4 . . . 5 3 . . . . 3 . . . . 5 . . . . 3 . . . 3 . . . . 1 . . 1 Builder 25 | . 5 . . 1 4 2 . . . . 6 . . . . 3 . . . . 3 . . . 1 . . . . . . . . Tunneler 8 | 1 . . . . . 1 . . . . 1 . . . . 1 . . . . 4 . . . . . . . . . . . . Hauler 34 | . 2 . . . 5 4 . . . . 5 . . . . 6 . . . . 8 . . . 2 . . . . 1 1 . . Recycler 20 | 1 2 . . . 5 5 . . . . 3 . . . . 1 . . . . 2 . . . . . . . . 1 . . . Minesweeper 5 | . . . . . . . 1 1 . 1 . . . . . . . . . 2 . . . . . . . . . . . . . Mechanic 6 | . . . . . 1 1 . . . . . . . . . 1 . . . . 1 . . 1 . 1 . . . . . . . Operator 10 | . 3 . . . . 1 . . . . . . . . . 1 . . . . 1 . . . 2 . . . . . 2 . . Drone 13 | . . . . . . . . . . . . . . . . 1 . . . . 2 . . . 10 . . . . . . . . Turret 10 | . . . . . . . . . . . 3 . . . . 7 . . . . . . . . . . . . . . . . . Watcher 67 | . 3 . . . 5 8 . . . . 6 . . . . 7 . . . . 11 . 1 1 7 1 . 3 1 6 2 2 3 Swarmer 183 | . 6 . . 3 3 18 4 8 . 5 4 1 . . 14 7 15 4 . 5 23 10 . 13 8 12 . . 13 3 . 4 . Cutter 17 | . . . . . . . . . . . . . . . . . . . . . 3 . . . 2 . . 4 . 4 4 . . Saboteur 3 | . . . . . . . . . . . . . . . . . . . . . . . . . . 3 . . . . . . . Grunt 239 | . 22 8 . . 8 22 1 1 . 3 17 4 6 . 7 29 9 2 . 3 37 7 . 8 5 13 . . 10 14 . 3 . Brawler 9 | . . . . . . 1 . . . . 1 . . . . 2 1 1 . . . 1 . . . 1 . . . . 1 . . Duelist 13 | . . . . . 1 . . 2 . . . . . . . 2 . 1 . . 4 1 . 1 . . . . . . 1 . . Protector 5 | . . . . . . 3 . . . . . . . . . . . . . . 1 . . . . 1 . . . . . . . Sentry 76 | . . . . . 9 8 . 3 . 1 5 1 1 . 1 8 2 1 . . 5 8 1 7 2 2 . . 2 5 1 2 1 Specialist 2 | . . . . . . 1 . . . . . . . . . . . . . . . 1 . . . . . . . . . . . Hunter 57 | . . . . . 3 6 . 1 . 2 1 . . . . 3 . 4 . 2 17 . . 2 2 2 . . 2 . 2 8 . Programmer 81 | . . . . . . 11 . . . . 3 . . . . 9 . . . 2 11 4 . 4 4 13 . . 5 8 1 3 3 Heavy 8 | . . . . . 1 3 . . . . . . . . . 1 . . . . 2 . . . . . . . . 1 . . . Behemoth 16 | . . . . . . . 1 1 . 1 1 1 . . . 1 . 1 . 1 2 1 . 1 . . . . 1 1 . 1 1 Tracker 12 | . . . . . . . . . . . . . . . . . . . . . . . . . . . . . . 8 2 . 2 Combat Programmer 10 | . . . . . . . . . . . . . . . . . . . . . . . . . . . . . . 7 2 . 1 Decomposer 8 | . . . . . . . 3 . . . . . 2 . . . . 1 . 2 . . . . . . . . . . . . . Packrat 6 | . . . . . . . . 3 . . . 3 . . . . . . . . . . . . . . . . . . . . . Assembled 2 | . . 2 . . . . . . . . . . . . . . . . . . . . . . . . . . . . . . . Infiltrator 1 | . . . . . . . . . . . . . . . . . . . . . . . . . . . . . 1 . . . . Best Kill Streak 24 | 2 6 4 . 3 12 10 4 5 . 4 7 3 4 . 11 24 15 7 . 8 22 12 2 9 16 9 1 4 15 20 13 3 3 Combat Bots Only 19 | . 5 4 . 3 3 9 4 5 . 4 7 3 4 . 11 17 15 7 . 8 18 12 1 9 12 9 1 4 15 19 10 3 3 Max Kills in Single Turn 4 | 1 2 2 . 1 1 2 1 1 . 1 2 2 1 . 2 2 3 2 . 2 4 2 1 2 3 2 1 1 2 3 2 2 1 Gunslinging 1 | . . 1 . . . . . . . . . . . . . . . . . . . . . . . . . . . . . . . Exploded 1 | . . 1 . . . . . . . . . . . . . . . . . . 1 . . . . . . . . . . . 1 Melee 3 | . . . . 1 1 2 1 1 . 1 2 2 1 . 2 2 3 2 . 2 2 2 1 2 3 2 1 1 2 3 2 2 1 Uniques/NPCs Destroyed 3 | . . . . . . . . . . . . . . . . 1 . . . . 1 . . . . . 1 . . . . . . GL-D0S (-5/Factory) DW-4LL (-4/Factory) A5 (-3/Lab) Combat | -11 -10 -10 -10 -9 -8 -7 -7 -7 -7 -6 -6 -6 -6 -6 -5 -5 -5 -5 -5 -4 -4 -4 -4 -4 -3 -3 -3 -2 -2 -2 -1 -1 -1 -------- Run | Yrd Mat Min Exi Min Mat Fac Low Low Zio Pro Fac Low Low Dat Pro Fac Upp Upp Zhi Pro Fac Gar Fac Gar Res Arm Lab Res Gar Res Acc Gar Acc Hostile Shots Fired 3038 | . 104 18 . 5 61 297 26 44 . 76 101 38 37 . 76 192 68 34 . 51 455 87 . 81 255 171 6 4 91 245 29 117 269 Missed 1673 | . 28 5 . 2 29 132 13 16 . 38 39 19 20 . 40 99 33 18 . 27 241 53 . 56 168 113 4 . 55 168 18 84 155 Hits 1365 | . 76 13 . 3 32 165 13 28 . 38 62 19 17 . 36 93 35 16 . 24 214 34 . 25 87 58 2 4 36 77 11 33 114 Melee 29 | . . 1 . . . . . 2 . . . . . . . 2 1 . . . 8 1 . . 2 1 . 4 . 4 3 . . Projectile 1336 | . 76 12 . 3 32 165 13 26 . 38 62 19 17 . 36 91 34 16 . 24 206 33 . 25 85 57 2 . 36 73 8 33 114 AOE 7 | . . . . . . . . . . . . . . . . . . . . . . . . . 6 . . . . 1 . . . Critical Strikes 81 | . 3 . . . 1 7 . . . 1 2 . . . . 10 2 . . 2 13 . . 3 13 2 . 2 2 5 2 . 11 Actively Blocked 64 | . . . . . 1 7 . . . 1 2 . . . . 10 2 . . 2 13 . . 2 . 2 . 2 2 5 2 . 11 Part Disruptions 6 | . . . . . . . . . . . . . . . . . . . . . . . . . 1 1 . . . 3 . . 1 Damage Taken 18063 | 34 869 184 . 61 867 2364 186 494 . 530 715 111 83 . 353 1303 424 114 . 283 2240 600 . 215 1759 528 25 96 407 1174 156 303 1585 Core 14632 | 26 703 144 . 49 730 1921 157 398 . 435 578 89 61 . 285 1055 347 95 . 234 1791 482 . 171 1458 416 19 84 325 959 129 233 1258 Absorbed by Shields 7387 | . . . . . . . . . . . 268 108 73 . 209 760 189 124 . 139 1580 236 . 225 588 444 27 58 334 752 160 313 800 Redirected to Core 11564 | 26 531 121 . 43 508 1507 96 339 . 339 464 71 57 . 214 861 254 58 . 160 1519 411 . 137 1056 346 19 45 263 718 90 225 1086 Ignored by Resistances 2439 | . . . . . . 117 24 53 . 66 85 24 18 . 55 160 68 27 . 56 316 88 . 47 133 166 . . 101 250 25 172 388 Regen/Repaired (Parts) 73 | . . . . . . 62 . . . . 11 . . . . . . . . . . . . . . . . . . . . . . Core Remaining (%) 96 | 95 . . . 95 100 . . . . 100 . . . . 100 . . . . 96 . . . 99 . . 100 . . 81 . . . Volleys Fired 289 | 2 142 30 . 3 . . . . . . . . . . . . . . . . . 22 . . . 1 3 4 1 3 . 64 14 Largest 4 | 3 4 4 . 1 . . . . . . . . . . . . . . . . . 1 . . . 1 1 1 1 1 . 1 1 Hottest 140 | 140 140 99 . 33 . . . . . . . . . . . . . . . . . 23 . . . 35 10 10 10 10 . 30 49 Shots Fired 576 | 6 372 83 . 3 . . . . . . . . . . . . . . . . . 22 . . . 1 3 4 1 3 . 64 14 Gun 449 | 6 341 75 . . . . . . . . . . . . . . . . . . . 22 . . . 1 . . . . . 4 . Cannon . | . . . . . . . . . . . . . . . . . . . . . . . . . . . . . . . . . . Launcher 50 | . 31 8 . 3 . . . . . . . . . . . . . . . . . . . . . . . . . . . . 8 Special 77 | . . . . . . . . . . . . . . . . . . . . . . . . . . . 3 4 1 3 . 60 6 Kinetic 240 | . 138 75 . . . . . . . . . . . . . . . . . . . 22 . . . 1 . . . . . 4 . Thermal 186 | 4 182 . . . . . . . . . . . . . . . . . . . . . . . . . . . . . . . . Explosive 50 | . 31 8 . 3 . . . . . . . . . . . . . . . . . . . . . . . . . . . . 8 Electromagnetic 23 | 2 21 . . . . . . . . . . . . . . . . . . . . . . . . . . . . . . . . Robot Hit Streak 30 | 2 8 9 . . . . . . . . . . . . . . . . . . . . . . . . . 4 . 7 . 26 30 Robot Miss Streak 6 | 2 6 5 . . . . . . . . . . . . . . . . . . . . . . . . . . . . . 2 1 Penetration Max . | . . . . . . . . . . . . . . . . . . . . . . . . . . . . . . . . . . Secondary Targets 8 | . 7 1 . . . . . . . . . . . . . . . . . . . . . . . . . . . . . . . Max Gunslinging Chain 1 | . 1 1 . . . . . . . . . . . . . . . . . . . . . . . . . . . . . . . Shots Hit Robots 2845 | 2 142 34 . 4 133 240 29 58 . 50 140 29 25 . 49 245 45 35 . 51 424 106 2 127 134 107 21 13 130 221 52 147 50 Core Hits 1300 | 2 73 23 . 2 46 109 11 23 . 20 68 14 11 . 25 113 29 18 . 22 210 43 2 52 54 61 5 7 50 104 28 45 30 Critical Kills . | . . . . . . . . . . . . . . . . . . . . . . . . . . . . . . . . . . Critical Parts Destroyed 5 | . 4 1 . . . . . . . . . . . . . . . . . . . . . . . . . . . . . . . Critical Strikes 318 | . 8 1 . . 12 23 7 9 . 4 15 3 5 . 2 28 . 7 . 3 59 10 . 16 25 14 2 . 17 26 4 14 4 Burn 4 | . 4 . . . . . . . . . . . . . . . . . . . . . . . . . . . . . . . . Destroy 5 | . 4 1 . . . . . . . . . . . . . . . . . . . . . . . . . . . . . . . Sever 307 | . . . . . 10 23 7 9 . 4 15 3 5 . 2 28 . 7 . 3 59 10 . 16 25 14 2 . 17 26 4 14 4 Impale 2 | . . . . . 2 . . . . . . . . . . . . . . . . . . . . . . . . . . . . Melee Attacks 3979 | . . . . 5 208 377 34 70 3 61 204 36 31 . 57 339 61 43 . 55 565 359 3 236 181 171 31 21 201 281 67 218 61 Impact . | . . . . . . . . . . . . . . . . . . . . . . . . . . . . . . . . . . Slashing 3921 | . . . . 5 152 376 34 70 2 61 204 36 31 . 57 339 61 43 . 55 565 359 3 236 181 171 31 21 201 281 67 218 61 Piercing 58 | . . . . . 56 1 . . 1 . . . . . . . . . . . . . . . . . . . . . . . . Sneak Attacks 275 | . . . . 2 26 29 4 7 . 2 25 3 2 . 4 44 . 1 . 6 26 12 . 18 17 8 . 2 6 8 6 16 1 Combat Hostiles 74 | . . . . 1 3 8 . . . . 1 . . . . 17 . . . . 5 9 . 8 . 7 . . 5 2 2 6 . Follow-up Attacks 987 | . . . . . 28 78 11 24 . 18 50 12 8 . 16 84 15 12 . 22 160 46 . 55 58 37 10 2 62 101 23 39 16 Damage Inflicted 150761 | 73 1954 672 . 315 6181 11485 1563 2740 . 2208 7421 1420 1388 . 2515 14286 2349 1993 . 2986 24662 6443 142 7797 8162 6480 1385 741 7533 12329 3273 6747 3518 Guns 2436 | 25 1928 483 . . . . . . . . . . . . . . . . . . . . . . . . . . . . . . . Cannons . | . . . . . . . . . . . . . . . . . . . . . . . . . . . . . . . . . . Explosions 2950 | 48 26 189 . . . . . . . . . . . . . . . . . . 1506 . . . . . . . . . . . 1181 Melee 145375 | . . . . 315 6181 11485 1563 2740 . 2208 7421 1420 1388 . 2515 14286 2349 1993 . 2986 23156 6443 142 7797 8162 6480 1385 741 7533 12329 3273 6747 2337 Ramming . | . . . . . . . . . . . . . . . . . . . . . . . . . . . . . . . . . . Kinetic 1202 | . 719 483 . . . . . . . . . . . . . . . . . . . . . . . . . . . . . . . Thermal 1894 | 60 1115 . . . . . . . . . . . . . . . . . . . 719 . . . . . . . . . . . . Explosive 1892 | . 26 189 . . . . . . . . . . . . . . . . . . 496 . . . . . . . . . . . 1181 Electromagnetic 398 | 13 94 . . . . . . . . . . . . . . . . . . . 291 . . . . . . . . . . . . Impact . | . . . . . . . . . . . . . . . . . . . . . . . . . . . . . . . . . . Slashing 144355 | . . . . 315 5161 11485 1563 2740 . 2208 7421 1420 1388 . 2515 14286 2349 1993 . 2986 23156 6443 142 7797 8162 6480 1385 741 7533 12329 3273 6747 2337 Piercing 1020 | . . . . . 1020 . . . . . . . . . . . . . . . . . . . . . . . . . . . . Highest Corruption 12 | . 1 1 1 1 . 2 2 2 3 . 1 1 1 1 1 3 2 2 2 2 3 1 1 1 . 4 4 . 3 12 . . 11 Average Corruption 1 | . 1 1 1 1 . 1 2 2 2 . 1 1 1 1 1 2 2 2 2 2 2 1 1 1 . 2 4 . 1 6 . . 8 Corruption Purged 9 | . . . . . . . . . . . . . . . . 3 . . . . 3 . . . . 3 . . . . . . . Corruption Blocked 2 | . . . . . . 2 . . . . . . . . . . . . . . . . . . . . . . . . . . . Effects 169 | . 9 6 2 2 . 20 4 3 2 . 5 3 2 2 7 16 4 3 . 2 10 15 . 5 . 4 4 . 1 31 . . 7 Message Errors 39 | . 6 1 . . . 1 1 . . . 1 1 1 1 1 3 1 . . . 5 4 . 1 . 1 . . . 9 . . 1 Matter Fused 52 | . 1 2 . 2 . 7 3 . 1 . 2 1 . 1 3 9 1 1 . 2 3 5 . 1 . 2 1 . . 4 . . . Heat Flow Errors 19 | . . 2 . . . 1 . . . . . 1 . . 2 3 1 . . . 1 2 . . . . . . . 4 . . 2 Energy Discharges 22 | . 1 . 1 . . 8 . 2 . . 1 . . . . . . 2 . . . 1 . 1 . . 1 . 1 3 . . . Parts Fused 3 | . . . . . . 1 . . . . . . . . . . . . . . . . . 1 . . . . . 1 . . . Data Loss (minor) 18 | . . . . . . 2 . . 1 . 1 . 1 . . 1 1 . . . . 1 . . . . 1 . . 5 . . 4 Data Loss (major) 5 | . . . . . . . . . . . . . . . . . . . . . 1 2 . 1 . . . . . 1 . . . Alerts 6 | . . . 1 . . . . 1 . . . . . . 1 . . . . . . . . . . 1 1 . . 1 . . . Misdirections 3 | . . . . . . . . . . . . . . . . . . . . . . . . . . . . . . 3 . . . Weapon Failures 2 | . 1 1 . . . . . . . . . . . . . . . . . . . . . . . . . . . . . . . Overload Shots . | . . . . . . . . . . . . . . . . . . . . . . . . . . . . . . . . . . Overflow Damage 9878 | . . . . 109 761 963 156 388 . 43 675 80 172 . 96 1164 143 89 . 325 1494 249 . 616 694 268 29 31 246 537 194 253 103 Projectiles . | . . . . . . . . . . . . . . . . . . . . . . . . . . . . . . . . . . Explosions 319 | . . . . . . . . . . . . . . . . . . . . . 272 . . . . . . . . . . . 47 Melee 9559 | . . . . 109 761 963 156 388 . 43 675 80 172 . 96 1164 143 89 . 325 1222 249 . 616 694 268 29 31 246 537 194 253 56 Knockbacks . | . . . . . . . . . . . . . . . . . . . . . . . . . . . . . . . . . . Impact . | . . . . . . . . . . . . . . . . . . . . . . . . . . . . . . . . . . Kinetic . | . . . . . . . . . . . . . . . . . . . . . . . . . . . . . . . . . . Secondary . | . . . . . . . . . . . . . . . . . . . . . . . . . . . . . . . . . . Self-Inflicted Damage 334 | 34 . 29 . 38 . . . . . . . . . . . . . . . . 143 . . . . . . . . . . . 90 Shots 10 | 1 . 2 . 1 . . . . . . . . . . . . . . . . 3 . . . . . . . . . . . 3 Rammed . | . . . . . . . . . . . . . . . . . . . . . . . . . . . . . . . . . . Targets Rammed . | . . . . . . . . . . . . . . . . . . . . . . . . . . . . . . . . . . Kicked . | . . . . . . . . . . . . . . . . . . . . . . . . . . . . . . . . . . Crushed . | . . . . . . . . . . . . . . . . . . . . . . . . . . . . . . . . . . Highest Temperature 475 | 168 458 246 . 8 12 475 6 11 . 11 71 85 3 . 216 259 253 4 6 . 127 261 13 42 3 1 1 1 1 277 1 6 242 Average Temperature 82 | 89 123 118 . 6 6 57 4 4 . 5 28 39 3 . 86 82 156 3 5 . 22 29 8 10 3 1 1 1 1 42 1 1 59 Received Heat Transfer 2874 | . 459 103 . . 117 531 24 54 . 90 200 31 31 . 100 180 60 18 . 9 167 66 . 42 407 80 . . 28 57 . 16 4 Effects 13 | . 8 . . . . 5 . . . . . . . . . . . . . . . . . . . . . . . . . . . Shutdowns 3 | . 1 . . . . 2 . . . . . . . . . . . . . . . . . . . . . . . . . . . Interference 3 | . 2 . . . . 1 . . . . . . . . . . . . . . . . . . . . . . . . . . . Matter Decay 3 | . 2 . . . . 1 . . . . . . . . . . . . . . . . . . . . . . . . . . . Short Circuit 2 | . 2 . . . . . . . . . . . . . . . . . . . . . . . . . . . . . . . . Damage (minor) 2 | . 1 . . . . 1 . . . . . . . . . . . . . . . . . . . . . . . . . . . Siege Activations . | . . . . . . . . . . . . . . . . . . . . . . . . . . . . . . . . . . Martial Activations . | . . . . . . . . . . . . . . . . . . . . . . . . . . . . . . . . . . Shielding Activations . | . . . . . . . . . . . . . . . . . . . . . . . . . . . . . . . . . . Robots Disrupted . | . . . . . . . . . . . . . . . . . . . . . . . . . . . . . . . . . . Combat Hostiles . | . . . . . . . . . . . . . . . . . . . . . . . . . . . . . . . . . . Robots Corrupted . | . . . . . . . . . . . . . . . . . . . . . . . . . . . . . . . . . . Combat Hostiles . | . . . . . . . . . . . . . . . . . . . . . . . . . . . . . . . . . . Parts Fried 2 | . . . . . . . . . . . . . . . . . . . . . 2 . . . . . . . . . . . . Impact Corruptions . | . . . . . . . . . . . . . . . . . . . . . . . . . . . . . . . . . . Robots Melted . | . . . . . . . . . . . . . . . . . . . . . . . . . . . . . . . . . . Combat Hostiles . | . . . . . . . . . . . . . . . . . . . . . . . . . . . . . . . . . . Parts Melted 7 | . 4 . . . . . . . . . . . . . . . . . . . 1 . . . . . . 1 . . . 1 . Heat Transferred 4251 | 87 3589 . . . . . . . . . . . . . . . . . . . 575 . . . . . . . . . . . . Parts Sabotaged . | . . . . . . . . . . . . . . . . . . . . . . . . . . . . . . . . . . Parts Stolen . | . . . . . . . . . . . . . . . . . . . . . . . . . . . . . . . . . . Parts Stripped . | . . . . . . . . . . . . . . . . . . . . . . . . . . . . . . . . . . Power Chain Reactions 1 | 1 . . . . . . . . . . . . . . . . . . . . . . . . . . . . . . . . . Alert | -11 -10 -10 -10 -9 -8 -7 -7 -7 -7 -6 -6 -6 -6 -6 -5 -5 -5 -5 -5 -4 -4 -4 -4 -4 -3 -3 -3 -2 -2 -2 -1 -1 -1 ------- Run | Yrd Mat Min Exi Min Mat Fac Low Low Zio Pro Fac Low Low Dat Pro Fac Upp Upp Zhi Pro Fac Gar Fac Gar Res Arm Lab Res Gar Res Acc Gar Acc Maximum Alert Level 5 | . 4 2 . . 2 4 . . . . 2 . . . . 4 . . . . 5 5 5 5 5 5 . . 3 5 4 5 5 Low Security (%) 18 | 100 33 . . 100 9 39 . . . . 42 . . . . 18 . . . . 11 . . . . . . 100 12 31 . . . Level 1 13 | . 22 . . . 62 14 . . . . 16 . . . . 16 . . . . 9 . . . . . . . 17 13 . . . Level 2 25 | . 24 100 . . 27 29 . . . . 40 . . . . 46 . . . . 15 . . . . 34 . . 42 24 . . . Level 3 14 | . 12 . . . . 10 . . . . . . . . . 11 . . . . 28 . . . . 47 . . 28 16 41 . . Level 4 10 | . 6 . . . . 6 . . . . . . . . . 7 . . . . 24 . . 22 65 16 . . . 6 58 16 . Level 5 15 | . . . . . . . . . . . . . . . . . . . . . 10 100 100 77 25 1 . . . 6 . 83 18 High Security 1 | . . . . . . . . . . . . . . . . . . . . . . . . . 8 . . . . . . . 81 Max Security . | . . . . . . . . . . . . . . . . . . . . . . . . . . . . . . . . . . Peak Influence 3612 | 10 1135 688 . 78 601 1219 . . . . 689 . . . . 1178 . . . . 2771 3612 1916 2617 1938 1917 . 96 1040 1681 1357 3043 2676 Initial 1939 | . . 439 . . 24 93 . . . . 63 . . . . 110 . . . . 126 1939 1896 1339 1471 1100 . . 56 585 1000 1085 1825 Average 904 | 3 395 601 . 58 313 396 . . . . 296 . . . . 522 . . . . 992 2761 1895 1941 1563 860 . 72 547 580 1156 2504 2138 Influence Increases 30013 | 10 1622 370 . 143 1369 2454 150 365 . 280 1117 165 170 . 470 2229 580 330 . 310 4278 1693 37 1278 1639 1789 . 165 1024 1980 437 2098 1461 Destroy 0b10 Robot/C 15240 | . 560 160 . 60 500 1400 120 320 . 240 640 140 140 . 440 1240 540 280 . 260 2080 660 20 720 460 920 . 80 680 1020 280 600 680 Destroy 0b10 Robot/NC 1115 | 10 90 . . 5 125 140 10 5 . 10 120 5 5 . . 125 . . . 10 170 5 5 10 80 15 . 15 5 45 25 40 40 Destroy Leader 2974 | . 130 40 . 10 180 364 20 40 . 30 172 20 10 . 30 296 40 50 . 40 418 40 12 60 106 152 . 16 60 304 96 70 168 Allied During Kill 770 | . . . . . . . . . . . 5 . 15 . . . . . . . 3 4 . . . . . . 20 . . 525 198 Trap Triggered on 0b10 130 | . . . . . . . . . . . . . . . . . . . . . 120 . . . . . . . . . . 10 . Successful Hack 590 | . 30 . . . 30 114 . . . . 74 . . . . 57 . . . . 32 . . . 99 37 . 6 . 65 12 34 . Select Force Hacks 390 | . . . . . . . . . . . . . . . . 60 . . . . 210 . . . 60 30 . . . 30 . . . Disable Machine 2040 | . 495 120 . 45 240 180 . . . . 60 . . . . 30 . . . . 525 90 . 30 . 105 . . . . . 90 30 Anti-Garrison Action 1250 | . . . . . 200 . . . . . . . . . . . . . . . . 300 . 300 . . . . 100 . . 350 . Destroy Structure 2019 | . 242 50 . 23 19 46 . . . . 16 . . . . 46 . . . . 270 444 . 158 24 50 . 18 144 66 9 319 75 Partial Spotted 690 | . . . . . 30 75 . . . . 15 . . . . 105 . . . . 90 30 . . 60 90 . . 15 105 . 30 45 Lose Combat Pursuer 2805 | . 75 . . . 45 135 . . . . 15 . . . . 270 . . . . 360 120 . . 750 390 . 30 . 345 15 30 225 Influence Decreases 27420 | 10 495 958 539 80 1226 1442 612 366 755 180 551 427 228 346 294 1236 583 352 1144 110 1707 852 1736 574 2318 1893 1917 90 59 1351 749 412 1828 Entered New Map 15116 | . . 688 539 . 39 113 452 144 755 . 37 247 78 346 . 66 433 222 1144 . 74 832 1716 574 1146 921 1917 . 19 455 669 272 1218 Time Decay 6836 | 10 495 270 . 80 577 662 160 222 . 180 464 180 150 . 284 550 150 130 . 110 602 . 20 . 262 662 . 90 . 416 80 . 30 Lost Part 50 | . . . . . 10 10 . . . . . . . . . . . . . . . . . . 10 10 . . . 10 . . . Lost Ally 1007 | . . . . . . 57 . . . . 50 . . . 10 20 . . . . 70 20 . . . . . . 40 20 . 140 580 Purge Threat 4411 | . . . . . 600 600 . . . . . . . . . 600 . . . . 961 . . . 900 300 . . . 450 . . . Squads Dispatched 177 | . 9 1 . . 5 25 . 1 . . 6 . . . . 21 . . . . 33 . 1 . 17 15 . 1 . 23 6 . 13 Investigation 74 | . 7 1 . . 3 13 . . . . 3 . . . . 10 . . . . 16 . . . 11 4 . . . 6 . . . Extermination 34 | . . . . . . 7 . . . . 3 . . . . 4 . . . . 6 . . . 3 6 . . . 4 1 . . Reinforcement 28 | . 2 . . . 2 3 . . . . . . . . . 4 . . . . 7 . 1 . 2 1 . 1 . 3 1 . 1 Assault 20 | . . . . . . 2 . 1 . . . . . . . 1 . . . . 2 . . . 1 4 . . . 1 . . 8 Garrison 14 | . . . . . . . . . . . . . . . . 2 . . . . 2 . . . . . . . . 5 3 . 2 Intercept 7 | . . . . . . . . . . . . . . . . . . . . . . . . . . . . . . 4 1 . 2 Searches Triggered . | . . . . . . . . . . . . . . . . . . . . . . . . . . . . . . . . . . Unchained Authorized 6 | . . . . . . . . . . . 1 . . . . 1 . . . . 2 . . . 1 . . 1 . . . . . Data Miner Redirects 2 | . . . . . . . . . . . . . . . . . . . . . . . . . . 2 . . . . . . . Construction Impeded . | . . . . . . . . . . . . . . . . . . . . . . . . . . . . . . . . . . Haulers Reinforced 8 | . . . . . . 1 . . . . . . . . . 2 . . . . 3 . . . 1 . . . . . . . 1 Active Scanning Responses . | . . . . . . . . . . . . . . . . . . . . . . . . . . . . . . . . . . Cargo Convoy Interrupts 1 | . . . . . . 1 . . . . . . . . . . . . . . . . . . . . . . . . . . . Stealth | -11 -10 -10 -10 -9 -8 -7 -7 -7 -7 -6 -6 -6 -6 -6 -5 -5 -5 -5 -5 -4 -4 -4 -4 -4 -3 -3 -3 -2 -2 -2 -1 -1 -1 --------- Run | Yrd Mat Min Exi Min Mat Fac Low Low Zio Pro Fac Low Low Dat Pro Fac Upp Upp Zhi Pro Fac Gar Fac Gar Res Arm Lab Res Gar Res Acc Gar Acc Distress Signals 27 | . 1 . . . . 1 . . . . . . . . . 4 . . . . 8 . 1 1 2 . . . . 3 1 . 5 Communications Jammed 43 | . . . . . . 14 . . . . . . . . . . . . . . . . . . 8 18 . 3 . . . . . Distress Signals 38 | . . . . . . 9 . . . . . . . . . . . . . . . . . . 8 18 . 3 . . . . . Times Spotted 1183 | . 42 11 . 2 32 97 6 15 . 12 55 8 7 . 21 162 27 14 . 13 148 30 2 35 121 90 1 7 35 97 17 44 32 Peak Tracking Total 27 | . 5 17 . 2 3 9 4 5 . 4 7 4 4 . 5 21 8 5 . 5 11 10 3 6 23 27 1 4 10 22 7 7 19 Tactical Retreats 93 | . 4 . . . 3 9 . . . . 5 . . . . 20 . . . . 11 4 . . 14 7 . 1 . 8 1 2 4 ID Masks Used 1 | . . . . . . . . . . . . . . . . 1 . . . . . . . . . . . . . . . . . IFF Responses 80 | . . . . . . . . . . . . . . . . 80 . . . . . . . . . . . . . . . . . Traps | -11 -10 -10 -10 -9 -8 -7 -7 -7 -7 -6 -6 -6 -6 -6 -5 -5 -5 -5 -5 -4 -4 -4 -4 -4 -3 -3 -3 -2 -2 -2 -1 -1 -1 ------- Run | Yrd Mat Min Exi Min Mat Fac Low Low Zio Pro Fac Low Low Dat Pro Fac Upp Upp Zhi Pro Fac Gar Fac Gar Res Arm Lab Res Gar Res Acc Gar Acc Traps Triggered 40 | . 5 . . . . . . . . . . . . . . 4 . . . . . 9 . 3 4 3 . . . 3 . 9 . Indirectly . | . . . . . . . . . . . . . . . . . . . . . . . . . . . . . . . . . . Trap Hack Attempts . | . . . . . . . . . . . . . . . . . . . . . . . . . . . . . . . . . . Triggered . | . . . . . . . . . . . . . . . . . . . . . . . . . . . . . . . . . . Disarmed . | . . . . . . . . . . . . . . . . . . . . . . . . . . . . . . . . . . Reprogrammed 45 | . . . . . . . . . . . 12 . . . . . . . . . 30 . . . . . . . . . . 3 . Reused 14 | . . . . . . . . . . . . . . . . . . . . . 13 . . . . . . . . . . 1 . Traps Extracted . | . . . . . . . . . . . . . . . . . . . . . . . . . . . . . . . . . . Installed . | . . . . . . . . . . . . . . . . . . . . . . . . . . . . . . . . . . Triggered 13 | . . . . . . . . . . . . . . . . . . . . . 12 . . . . . . . . . . 1 . Objects Rigged 9 | . . . . . . . . . . . . . . . . . . . . . 9 . . . . . . . . . . . . Exploded 2 | . . . . . . . . . . . . . . . . . . . . . 2 . . . . . . . . . . . . Machines | -11 -10 -10 -10 -9 -8 -7 -7 -7 -7 -6 -6 -6 -6 -6 -5 -5 -5 -5 -5 -4 -4 -4 -4 -4 -3 -3 -3 -2 -2 -2 -1 -1 -1 ---------- Run | Yrd Mat Min Exi Min Mat Fac Low Low Zio Pro Fac Low Low Dat Pro Fac Upp Upp Zhi Pro Fac Gar Fac Gar Res Arm Lab Res Gar Res Acc Gar Acc Machines Disabled 161 | . 34 8 . 3 16 12 . . . . 4 . . . . 2 2 . . . 35 12 . 7 . 7 1 . 2 . . 14 2 Max in Single Turn 23 | . 2 1 . 1 1 1 . . . . 1 . . . . 1 1 . . . 23 2 . 1 . 1 1 . 1 . . 2 1 Garrison Access 12 | . . . . . 1 3 . . . . 2 . . . . 3 . . . . 2 . . . 1 . . . . . . . . Garrison Relay 16 | . . . . . . . . . . . . . . . . . . . . . . 3 . 5 . . . . 2 . . 6 . Phase Generator 2 | . . . . . . . . . . . . . . . . . . . . . . 1 . . . . . . . . . 1 . Energy Cycler 1 | . . . . . . . . . . . . . . . . . . . . . . . . . . 1 . . . . . . . Machines Repaired . | . . . . . . . . . . . . . . . . . . . . . . . . . . . . . . . . . . Machines Dismantled . | . . . . . . . . . . . . . . . . . . . . . . . . . . . . . . . . . . Machines Sabotaged . | . . . . . . . . . . . . . . . . . . . . . . . . . . . . . . . . . . Overloaded Fab Kills . | . . . . . . . . . . . . . . . . . . . . . . . . . . . . . . . . . . Hacking | -11 -10 -10 -10 -9 -8 -7 -7 -7 -7 -6 -6 -6 -6 -6 -5 -5 -5 -5 -5 -4 -4 -4 -4 -4 -3 -3 -3 -2 -2 -2 -1 -1 -1 --------- Run | Yrd Mat Min Exi Min Mat Fac Low Low Zio Pro Fac Low Low Dat Pro Fac Upp Upp Zhi Pro Fac Gar Fac Gar Res Arm Lab Res Gar Res Acc Gar Acc Machines Accessed 214 | . 9 2 1 . 15 34 2 1 . . 24 . 2 2 1 24 2 . 4 1 30 2 1 1 17 10 1 4 3 14 4 3 . Terminals 126 | . 7 1 . . 12 18 1 . . . 15 . . . 1 12 . . . 1 15 2 . 1 12 7 . 3 3 9 3 3 . Fabricators 24 | . . . . . . 6 . . . . 3 . . . . 3 . . . . 5 . . . 2 2 . . . 3 . . . Repair Stations 2 | . . . . . . 1 . . . . 1 . . . . . . . . . . . . . . . . . . . . . . Recycling Units 25 | . 2 . . . 1 4 . . . . 2 . . . . 4 . . . . 7 . . . 2 1 . . . 2 . . . Scanalyzers 6 | . . . . . 1 2 . . . . 1 . . . . 2 . . . . . . . . . . . . . . . . . Garrison Access 16 | . . . . . 1 3 . . . . 2 . . . . 3 . . . . 3 . 1 . 1 . . 1 . . 1 . . Total Hacks 903 | . 35 4 1 . 61 144 2 1 . . 102 . 4 10 7 100 2 . 14 1 159 12 1 4 72 44 1 30 6 58 14 14 . Successful 567 | . 19 2 1 . 36 101 2 1 . . 58 . 4 10 7 65 2 . 14 1 95 5 1 2 39 28 1 15 4 37 9 8 . Failed 336 | . 16 2 . . 25 43 . . . . 44 . . . . 35 . . . . 64 7 . 2 33 16 . 15 2 21 5 6 . Catastrophic 42 | . 3 1 . . 5 6 . . . . 3 . . . . 7 . . . . 10 1 . . 3 . . 1 . 1 . 1 . Database Lockouts . | . . . . . . . . . . . . . . . . . . . . . . . . . . . . . . . . . . Manual 398 | . 15 . 1 . 37 68 . . . . 52 . . . . 34 . . . . 93 7 . 2 15 17 2 13 2 25 5 10 . Terminals 699 | . 31 3 . . 56 104 1 . . . 78 . . . 7 74 . . . 1 124 12 . 4 60 36 . 29 6 46 13 14 . Fabricators 61 | . . . . . . 15 . . . . 7 . . . . 9 . . . . 12 . . . 7 5 . . . 6 . . . Repair Stations 11 | . . . . . . 8 . . . . 3 . . . . . . . . . . . . . . . . . . . . . . Recycling Units 65 | . 4 . . . 1 8 . . . . 10 . . . . 9 . . . . 20 . . . 4 3 . . . 6 . . . Scanalyzers 8 | . . . . . 1 3 . . . . 1 . . . . 3 . . . . . . . . . . . . . . . . . Garrison Access 24 | . . . . . 3 6 . . . . 3 . . . . 5 . . . . 3 . 1 . 1 . . 1 . . 1 . . Terminal Hacks 319 | . 10 2 1 . 20 49 2 1 . . 25 . 4 10 7 32 2 . 14 1 48 3 . 2 26 15 1 10 4 20 5 5 . Record 39 | . . . . . . 4 1 . . . 1 . 3 6 7 2 1 . 6 1 1 . . . 2 . 1 1 . 2 . . . Part Schematic 13 | . . . . . 2 4 . . . . 1 . . 1 . . . . . . 1 . . . 2 . . . . 2 . . . Robot Schematic 1 | . . . . . . 1 . . . . . . . . . . . . . . . . . . . . . . . . . . . Robot Analysis 20 | . 1 . . . . 7 . . . . 4 . . . . . . . 4 . 3 . . . . . . . . 1 . . . Prototype ID Bank 34 | . 4 . . . 5 5 . . . . 3 . . 3 . 4 . . 4 . 3 . . . 1 . . 1 . . 1 . . Open Door 9 | . . 1 . . . . 1 1 . . 1 . 1 . . . 1 . . . . . . . . . . . 1 . 1 1 . Level Access Points 8 | . . . . . . . . . . . 1 . . . . 1 . . . . 1 . . . 1 1 . . 1 1 1 . . Branch Access Points 9 | . 1 . . . . 1 . . . . 1 . . . . 1 . . . . . . . . 1 1 . 1 . 1 1 . . Emergency Access Points 10 | . . . . . . . . . . . . . . . . 1 . . . . . 1 . 1 2 2 . 1 1 . . 1 . Machine Index 4 | . . . . . . . . . . . . . . . . . . . . . 1 . . . 1 . . . . 1 1 . . Terminal Index 10 | . . . . . 1 1 . . . . 1 . . . . 2 . . . . 1 . . . . 2 . 1 . 1 . . . Fabricator Index 8 | . . . . . . 2 . . . . 1 . . . . 1 . . . . 2 . . . . 1 . . . 1 . . . Repair Station Index 3 | . . . . . 1 1 . . . . . . . . . 1 . . . . . . . . . . . . . . . . . Recycling Unit Index 2 | . . . . . 1 . . . . . . . . . . . . . . . 1 . . . . . . . . . . . . Scanalyzer Index 3 | . . . . . . 1 . . . . . . . . . 1 . . . . 1 . . . . . . . . . . . . Garrison Index 4 | . . . . . 1 1 . . . . . . . . . . . . . . 1 . . . . . . . . 1 . . . Alert Level 14 | . 2 . . . 1 4 . . . . . . . . . 3 . . . . 2 . . . . 1 . . . 1 . . . Unreport Threat 30 | . . . . . 4 4 . . . . . . . . . 4 . . . . 7 . . . 6 2 . . . 3 . . . Locate Traps 10 | . 1 . . . . . . . . . 1 . . . . . . . . . 2 1 . 1 1 . . 2 . 1 . . . Reprogram Traps 15 | . . . . . . . . . . . 4 . . . . . . . . . 9 . . . . . . . . . . 2 . Maintenance Status 1 | . . . . . . 1 . . . . . . . . . . . . . . . . . . . . . . . . . . . Security Status 1 | . . . . . . 1 . . . . . . . . . . . . . . . . . . . . . . . . . . . Surveillance Status 1 | . . . . . 1 . . . . . . . . . . . . . . . . . . . . . . . . . . . . Patrol Status 2 | . . 1 . . . . . . . . . . . . . . . . . . . . . . . . . . . 1 . . . Transport Status 2 | . . . . . . . . . . . . . . . . . . . . . 1 . . . . . . . . 1 . . . Investigation Status 3 | . . . . . . 1 . . . . 1 . . . . . . . . . 1 . . . . . . . . . . . . Extermination Status 4 | . . . . . . 1 . . . . 1 . . . . . . . . . 2 . . . . . . . . . . . . Reinforcement Status 3 | . . . . . . 1 . . . . . . . . . 1 . . . . 1 . . . . . . . . . . . . Assault Status 2 | . . . . . . 1 . . . . . . . . . . . . . . . . . . . 1 . . . . . . . Recall Investigation 10 | . . . . . . 4 . . . . 1 . . . . 4 . . . . 1 . . . . . . . . . . . . Recall Extermination 3 | . . . . . . . . . . . . . . . . . . . . . 1 . . . 2 . . . . . . . . Recall Reinforcements 3 | . . . . . . . . . . . . . . . . 1 . . . . . . . . 2 . . . . . . . . Recall Assault 2 | . . . . . . . . . . . 1 . . . . . . . . . . . . . 1 . . . . . . . . Hauler Manifests 8 | . . . . . 1 1 . . . . 1 . . . . 3 . . . . . . . . 1 1 . . . . . . . Registered Components 6 | . . . . . 1 1 . . . . 1 . . . . 1 . . . . . . . . 1 . . . . 1 . . . Registered Prototypes 6 | . 1 . . . 1 1 . . . . . . . . . . . . . . 1 . . . 1 . . 1 . . . . . Zone Layout 12 | . . . . . . . . . . . . . . . . 1 . . . . 4 . . . 1 3 . 2 . 1 . . . Garrison Registry 1 | . . . . . . . . . . . . . . . . . . . . . . . . . . . . . 1 . . . . Patrol Navigation 1 | . . . . . . . . . . . . . . . . . . . . . . 1 . . . . . . . . . . . Security Stations 1 | . . . . . . . . . . . . . . . . . . . . . . . . . . . . . . . . 1 . Proto ID Catalog 1 | . . . 1 . . . . . . . . . . . . . . . . . . . . . . . . . . . . . . Fabricator Hacks 48 | . . . . . . 12 . . . . 5 . . . . 7 . . . . 11 . . . 2 5 . . . 6 . . . Network Status 6 | . . . . . . 1 . . . . 1 . . . . 1 . . . . 1 . . . 1 1 . . . . . . . Load Schematic 22 | . . . . . . 6 . . . . 2 . . . . 3 . . . . 5 . . . 1 2 . . . 3 . . . Build 20 | . . . . . . 5 . . . . 2 . . . . 3 . . . . 5 . . . . 2 . . . 3 . . . Repair Station Hacks 10 | . . . . . . 8 . . . . 2 . . . . . . . . . . . . . . . . . . . . . . Scan Component 5 | . . . . . . 4 . . . . 1 . . . . . . . . . . . . . . . . . . . . . . Repair 5 | . . . . . . 4 . . . . 1 . . . . . . . . . . . . . . . . . . . . . . Recycling Unit Hacks 24 | . 1 . . . 1 4 . . . . 2 . . . . 4 . . . . 7 . . . 2 1 . . . 2 . . . Retrieve Components 24 | . 1 . . . 1 4 . . . . 2 . . . . 4 . . . . 7 . . . 2 1 . . . 2 . . . Scanalyzer 8 | . . . . . 1 3 . . . . 1 . . . . 3 . . . . . . . . . . . . . . . . . Insert Component 1 | . . . . . . . . . . . . . . . . 1 . . . . . . . . . . . . . . . . . Retrieve Study 7 | . . . . . 1 3 . . . . 1 . . . . 2 . . . . . . . . . . . . . . . . . Garrison Access Hacks 15 | . . . . . . 3 . . . . 2 . . . . 3 . . . . 3 . 1 . 1 . . 1 . . 1 . . Unlock Access 4 | . . . . . . . . . . . . . . . . . . . . . 1 . 1 . . . . 1 . . 1 . . Seal Access 11 | . . . . . . 3 . . . . 2 . . . . 3 . . . . 2 . . . 1 . . . . . . . . Unauthorized Hacks 141 | . 8 . . . 13 21 . . . . 21 . . . . 16 . . . . 26 2 . . 8 7 . 4 . 9 3 3 . Terminals 122 | . 7 . . . 12 18 . . . . 20 . . . . 14 . . . . 19 2 . . 6 6 . 4 . 8 3 3 . Track 1 | . . . . . . . . . . . 1 . . . . . . . . . . . . . . . . . . . . . . Assimilate 29 | . 1 . . . 3 5 . . . . 8 . . . . 2 . . . . 6 . . . 1 . . 1 . 2 . . . Botnet 79 | . 5 . . . 8 12 . . . . 11 . . . . 11 . . . . 10 2 . . 5 5 . 2 . 5 2 1 . Detonate 3 | . . . . . . . . . . . . . . . . . . . . . 2 . . . . . . . . . . 1 . Disrupt 2 | . . . . . . 1 . . . . . . . . . . . . . . . . . . . . . . . . . 1 . Operators 8 | . 1 . . . 1 . . . . . . . . . . 1 . . . . 1 . . . . 1 . 1 . 1 1 . . Fabricators . | . . . . . . . . . . . . . . . . . . . . . . . . . . . . . . . . . . Repair Stations . | . . . . . . . . . . . . . . . . . . . . . . . . . . . . . . . . . . Recycling Units 18 | . 1 . . . . 3 . . . . 1 . . . . 2 . . . . 7 . . . 2 1 . . . 1 . . . Reject 5 | . 1 . . . . 3 . . . . 1 . . . . . . . . . . . . . . . . . . . . . . Tunnel 13 | . . . . . . . . . . . . . . . . 2 . . . . 7 . . . 2 1 . . . 1 . . . Scanalyzers . | . . . . . . . . . . . . . . . . . . . . . . . . . . . . . . . . . . Garrison Access 1 | . . . . . 1 . . . . . . . . . . . . . . . . . . . . . . . . . . . . Jam 1 | . . . . . 1 . . . . . . . . . . . . . . . . . . . . . . . . . . . . Data Cores Recovered 4 | . . . . . . . . . . . . . . . . . . . . . 1 . . . 1 . . . . . 2 . . Used 2 | . . . . . . . . . . . . . . . . . . . . . 1 . . . 1 . . . . . . . . Hacking Detections 141 | . 8 1 . . 9 26 . . . . 15 . . . 1 15 . . . . 20 2 . 1 14 10 . 2 1 12 3 1 . Full Trace Events 61 | . 7 1 . . 3 12 . . . . 3 . . . . 8 . . . . 9 . . 1 9 3 . . . 5 . . . Feedback Events 6 | . . . . . . 3 . . . . . . . . . . . . . . . . . . 1 1 . . . 1 . . . Corruption 3 | . . . . . . 3 . . . . . . . . . . . . . . . . . . . . . . . . . . . Hackware Fried 3 | . . . . . . . . . . . . . . . . . . . . . . . . . 1 1 . . . 1 . . . Feedback Blocked 1 | . . . . . . . . . . . . . . . . . . . . . . . . 1 . . . . . . . . . Robot Schematics Acquired 1 | . . . . . . 1 . . . . . . . . . . . . . . . . . . . . . . . . . . . Robots Built 2 | . . . . . . . . . . . . . . . . 2 . . . . . . . . . . . . . . . . . Authchips . | . . . . . . . . . . . . . . . . . . . . . . . . . . . . . . . . . . Time 116 | . . . . . . . . . . . . . . . . 116 . . . . . . . . . . . . . . . . . Total Robot Build Rating 6 | . . . . . . . . . . . . . . . . 6 . . . . . . . . . . . . . . . . . Part Schematics Acquired 12 | . . . . . 2 3 . . . . 1 . . 1 . . . . . . 1 . . . 2 . . . . 2 . . . Parts Built 25 | . . . . . . 10 . . . . 4 . . . . 2 . . . . 5 . . . . 2 . . . 2 . . . Authchips . | . . . . . . . . . . . . . . . . . . . . . . . . . . . . . . . . . . Time 1774 | . . . . . . 229 . . . . 78 . . . . 117 . . . . 622 . . . . 284 . . . 444 . . . Total Part Build Rating 147 | . . . . . . 44 . . . . 20 . . . . 14 . . . . 35 . . . . 16 . . . 18 . . . Part Studies Acquired 7 | . . . . . 1 3 . . . . 1 . . . . 2 . . . . . . . . . . . . . . . . . Parts Repaired 5 | . . . . . . 4 . . . . 1 . . . . . . . . . . . . . . . . . . . . . . Time 187 | . . . . . . 152 . . . . 35 . . . . . . . . . . . . . . . . . . . . . . Parts Recycled . | . . . . . . . . . . . . . . . . . . . . . . . . . . . . . . . . . . Recycled Matter . | . . . . . . . . . . . . . . . . . . . . . . . . . . . . . . . . . . Retrieved Matter . | . . . . . . . . . . . . . . . . . . . . . . . . . . . . . . . . . . Retrieved Components 73 | . 1 . . . 3 10 . . . . 7 . . . . 19 . . . . 26 . . . 2 3 . . . 2 . . . Parts Scanalyzed . | . . . . . . . . . . . . . . . . . . . . . . . . . . . . . . . . . . Part Schematics Acquired . | . . . . . . . . . . . . . . . . . . . . . . . . . . . . . . . . . . Parts Damaged . | . . . . . . . . . . . . . . . . . . . . . . . . . . . . . . . . . . Bothacking | -11 -10 -10 -10 -9 -8 -7 -7 -7 -7 -6 -6 -6 -6 -6 -5 -5 -5 -5 -5 -4 -4 -4 -4 -4 -3 -3 -3 -2 -2 -2 -1 -1 -1 ------------ Run | Yrd Mat Min Exi Min Mat Fac Low Low Zio Pro Fac Low Low Dat Pro Fac Upp Upp Zhi Pro Fac Gar Fac Gar Res Arm Lab Res Gar Res Acc Gar Acc Used RIF Installer 5 | . . . . . . . . . . . . . . . . . . . . . . 2 . 1 . . . . 1 . . 1 . Code Merge 1 | . . . . . . . . . . . . . . . . . . . . . . . . . . . . . 1 . . . . Signal Jammer 1 | . . . . . . . . . . . . . . . . . . . . . . 1 . . . . . . . . . . . Program Shield 1 | . . . . . . . . . . . . . . . . . . . . . . . . 1 . . . . . . . . . Autoassimilate 1 | . . . . . . . . . . . . . . . . . . . . . . . . . . . . . . . . 1 . Robots Hacked 34 | . . . . . . . . . . . . . . . . . . . . . . . . . . . 1 1 1 . . 27 4 Non-combat 1 | . . . . . . . . . . . . . . . . . . . . . . . . . . . . 1 . . . . . Combat 33 | . . . . . . . . . . . . . . . . . . . . . . . . . . . 1 . 1 . . 27 4 Robot Hacks Applied 35 | . . . . . . . . . . . . . . . . . . . . . . . . . . . 1 2 1 . . 27 4 parse_system 4 | . . . . . . . . . . . . . . . . . . . . . . . . . . . 1 . 1 . . 1 1 map_route 1 | . . . . . . . . . . . . . . . . . . . . . . . . . . . . 1 . . . . . link_fov 1 | . . . . . . . . . . . . . . . . . . . . . . . . . . . . 1 . . . . . mark_system 1 | . . . . . . . . . . . . . . . . . . . . . . . . . . . . . . . . 1 . overwrite_iff 1 | . . . . . . . . . . . . . . . . . . . . . . . . . . . . . . . . 1 . formatsys_high 27 | . . . . . . . . . . . . . . . . . . . . . . . . . . . . . . . . 24 3 Relay Couplers Released 25 | . . . . . . . . . . . . . . . . . . . . . . 4 . 9 . . . . 3 . . 9 . Machine Destruction 25 | . . . . . . . . . . . . . . . . . . . . . . 4 . 9 . . . . 3 . . 9 . Attached 15 | . . . . . . . . . . . . . . . . . . . . . . 1 . 1 . . . . 2 . . 11 . Merged Code Value 84 | . . . . . . . . . . . . . . . . . . . . . . . . . . . . . . . . 84 . Fabnet Peak Effective % . | . . . . . . . . . . . . . . . . . . . . . . . . . . . . . . . . . . Robots Rewired 10 | . . . . . . . . . . . . . . . . . . . . . . . . . . . . . . . . 10 . Allies Hacked 2 | . . . . . . 1 . . . . . . . . . . . . . . . . . . . . . . . 1 . . . Hacks Repelled . | . . . . . . . . . . . . . . . . . . . . . . . . . . . . . . . . . . Allies | -11 -10 -10 -10 -9 -8 -7 -7 -7 -7 -6 -6 -6 -6 -6 -5 -5 -5 -5 -5 -4 -4 -4 -4 -4 -3 -3 -3 -2 -2 -2 -1 -1 -1 -------- Run | Yrd Mat Min Exi Min Mat Fac Low Low Zio Pro Fac Low Low Dat Pro Fac Upp Upp Zhi Pro Fac Gar Fac Gar Res Arm Lab Res Gar Res Acc Gar Acc Total Allies 75 | . 1 3 . . 2 5 . . . . 6 . 3 . . 4 . . . . 5 1 . . . . . 1 3 1 . 37 3 Largest Group 29 | . 1 3 2 . 2 5 . . . . 4 1 4 1 1 2 2 2 2 2 3 1 . . . . . 1 3 1 . 29 28 Highest-Rated Group 1770 | . 10 69 38 . 20 66 . . . . 88 26 119 26 26 52 52 52 52 52 78 51 . . . . . 45 205 45 . 1770 1717 Highest-Rated Ally 183 | . 10 31 31 . 10 26 . . . . 26 26 31 26 26 26 26 26 26 26 26 51 . . . . . 45 80 45 . 89 183 Total Orders 11 | . . . . . 2 2 . . . . 4 . . . . . . . . . . . . . . . . . 2 . . . 1 STAY 5 | . . . . . 1 1 . . . . 2 . . . . . . . . . . . . . . . . . 1 . . . . ROAM 1 | . . . . . . . . . . . . . . . . . . . . . . . . . . . . . . . . . 1 FOLLOW 5 | . . . . . 1 1 . . . . 2 . . . . . . . . . . . . . . . . . 1 . . . . Ally Attacks 236 | . . . . . . . . . . . . . . . . . . . . . . 6 . . . . . . 10 . . 80 140 Total Damage 8288 | . . . . . . . . . . . . . . . . . . . . . . 122 . . . . . . 201 . . 2769 5196 Kills 41 | . . . . . . . . . . . . . . . . . . . . . . . . . . . . . . . . 10 31 Allies Corrupted 10 | . . . . . . . . . . . 2 . . . . . . . . . . . . . . . . . 1 1 . 1 5 Allies Melted . | . . . . . . . . . . . . . . . . . . . . . . . . . . . . . . . . . . Intel | -11 -10 -10 -10 -9 -8 -7 -7 -7 -7 -6 -6 -6 -6 -6 -5 -5 -5 -5 -5 -4 -4 -4 -4 -4 -3 -3 -3 -2 -2 -2 -1 -1 -1 ------- Run | Yrd Mat Min Exi Min Mat Fac Low Low Zio Pro Fac Low Low Dat Pro Fac Upp Upp Zhi Pro Fac Gar Fac Gar Res Arm Lab Res Gar Res Acc Gar Acc Active Infowar (turns) 16024 | . 801 593 102 171 1762 2945 331 466 364 363 1173 360 314 215 642 1007 312 267 83 249 279 . . . 597 578 201 191 370 997 177 61 53 Optics 2 | . . . . . . . . . 2 . . . . . . . . . . . . . . . . . . . . . . . . Sensors 1 | . . . . . . . . . . . . . . . . 1 . . . . . . . . . . . . . . . . . IFF 2 | . . . . . . . . . . . 2 . . . . . . . . . . . . . . . . . . . . . . Structural 15939 | . 801 593 102 171 1762 2945 331 466 362 363 1171 360 314 215 642 932 312 267 83 249 277 . . . 597 578 201 191 370 995 177 59 53 Cloaking 2 | . . . . . . . . . . . . . . . . . . . . . 2 . . . . . . . . . . . . Spoofing 2 | . . . . . . . . . . . . . . . . . . . . . . . . . . . . . . . . 2 . Jamming 1983 | . . . . . . 1981 . . . . . . . . . . . . . . . . . . . . . . . 2 . . . ECM 1 | . . . . . . . . . . . . . . . . . . . . . . . . . 1 . . . . . . . . ID Mask 75 | . . . . . . . . . . . . . . . . 75 . . . . . . . . . . . . . . . . . Robot Analysis Total 20 | . 1 . . . . 7 . . . . 4 . . . . . . . 4 . 3 . . . . . . . . 1 . . . Derelict Logs Recovered 19 | . . 1 . 1 . . 3 2 1 1 . 2 1 . 3 . 2 1 . 1 . . . . . . . . . . . . . Drone Launches . | . . . . . . . . . . . . . . . . . . . . . . . . . . . . . . . . . . Drone Recoveries . | . . . . . . . . . . . . . . . . . . . . . . . . . . . . . . . . . . Exploration | -11 -10 -10 -10 -9 -8 -7 -7 -7 -7 -6 -6 -6 -6 -6 -5 -5 -5 -5 -5 -4 -4 -4 -4 -4 -3 -3 -3 -2 -2 -2 -1 -1 -1 ------------- Run | Yrd Mat Min Exi Min Mat Fac Low Low Zio Pro Fac Low Low Dat Pro Fac Upp Upp Zhi Pro Fac Gar Fac Gar Res Arm Lab Res Gar Res Acc Gar Acc Turns Passed 24033 | 45 1397 593 102 171 1762 2945 331 466 378 363 1175 360 314 215 642 1586 312 267 83 249 1990 1271 45 515 629 2505 201 191 370 1005 177 1040 338 Spaces Moved 46072 | 33 1475 942 301 457 2008 6598 1037 1101 1028 897 2631 1073 898 108 794 3287 991 969 154 809 3839 2041 86 1083 2464 1650 421 403 856 2463 623 1554 998 Core 16 | 14 2 . . . . . . . . . . . . . . . . . . . . . . . . . . . . . . . . Treads . | . . . . . . . . . . . . . . . . . . . . . . . . . . . . . . . . . . Legs 277 | 3 274 . . . . . . . . . . . . . . . . . . . . . . . . . . . . . . . . Wheels 179 | 16 163 . . . . . . . . . . . . . . . . . . . . . . . . . . . . . . . . Hover . | . . . . . . . . . . . . . . . . . . . . . . . . . . . . . . . . . . Flight 45600 | . 1036 942 301 457 2008 6598 1037 1101 1028 897 2631 1073 898 108 794 3287 991 969 154 809 3839 2041 86 1083 2464 1650 421 403 856 2463 623 1554 998 Fastest Speed 12 | 50 31 31 31 31 26 23 28 28 28 31 25 25 25 25 25 20 20 20 20 20 13 13 13 13 13 12 12 12 12 12 12 12 12 Average Speed 21 | 81 54 31 31 31 27 25 28 28 29 31 25 25 25 25 25 21 20 20 20 20 17 13 13 13 13 12 12 12 12 12 12 12 16 Slowest Speed 170 | 120 130 31 31 31 31 106 28 28 31 31 31 25 25 25 25 101 20 20 20 20 20 13 13 13 96 13 12 12 12 88 12 12 170 Overloaded Moves . | . . . . . . . . . . . . . . . . . . . . . . . . . . . . . . . . . . Propulsion Burnouts . | . . . . . . . . . . . . . . . . . . . . . . . . . . . . . . . . . . Robots Hopped 78 | . 1 5 . 2 9 19 . 1 . . 3 . . . . 12 . . . . 7 . . . 11 2 . . . 6 . . . Potential Cave-ins . | . . . . . . . . . . . . . . . . . . . . . . . . . . . . . . . . . . Cave-ins Triggered . | . . . . . . . . . . . . . . . . . . . . . . . . . . . . . . . . . . Teleports 1 | . . . . . . . . . . . . . . . . . . . . . . . . . . . 1 . . . . . . Exploration Rate (%) 75 | 3 100 98 64 98 99 90 98 98 83 97 59 97 92 75 96 77 95 95 62 98 76 99 3 96 69 75 96 8 87 54 19 99 24 Regions Visited 33 Branch Regions 17 Pre-discovered Areas 23 | . . . . . . . . 1 1 . . 1 2 1 . 2 . . 3 1 7 . . . 2 1 . . . 1 . . . Known Exits Taken 24 | . 1 1 1 1 1 1 1 1 1 1 1 1 1 1 1 1 . . . 1 1 . 1 . 1 . 1 1 . 1 1 . . Unknown Exits Taken 5 | 1 . . . . . . . . . . . . . . . . 1 1 1 . . . . . . 1 . . . . . . . Scrap Searched 35 | . . 1 . 2 . . 2 5 1 3 . 6 5 . 4 . 3 1 . 2 . . . . . . . . . . . . . Spaces Dug 383 | . 32 . . . 20 47 . . 1 2 16 1 1 . . 23 1 . . . 40 92 . 19 12 15 . 6 3 23 3 19 7 Terrain Destroyed 961 | 3 254 73 . 24 20 47 . . 1 2 16 1 1 . . 23 1 . . . 142 161 . 19 12 23 . 6 3 23 3 71 32 Melee 351 | . . . . . 20 47 . . 1 2 16 1 1 . . 23 1 . . . 40 92 . 19 12 15 . 6 3 23 3 19 7 Projectile . | . . . . . . . . . . . . . . . . . . . . . . . . . . . . . . . . . . AOE 610 | 3 254 73 . 24 . . . . . . . . . . . . . . . . 102 69 . . . 8 . . . . . 52 25 Terrain Rammed . | . . . . . . . . . . . . . . . . . . . . . . . . . . . . . . . . . . Walls Destroyed . | . . . . . . . . . . . . . . . . . . . . . . . . . . . . . . . . . . Machines Disabled . | . . . . . . . . . . . . . . . . . . . . . . . . . . . . . . . . . . Actions | -11 -10 -10 -10 -9 -8 -7 -7 -7 -7 -6 -6 -6 -6 -6 -5 -5 -5 -5 -5 -4 -4 -4 -4 -4 -3 -3 -3 -2 -2 -2 -1 -1 -1 --------- Run | Yrd Mat Min Exi Min Mat Fac Low Low Zio Pro Fac Low Low Dat Pro Fac Upp Upp Zhi Pro Fac Gar Fac Gar Res Arm Lab Res Gar Res Acc Gar Acc Total 58565 | 42 1800 1190 309 475 3041 7622 1071 1244 1094 970 3095 1154 980 295 1224 4094 1095 1035 203 888 5079 2975 119 1420 2681 3910 560 538 1092 3106 717 2324 1123 Wait 8465 | . 94 210 3 9 828 628 3 76 45 9 281 43 60 188 377 491 46 38 45 36 786 592 31 187 58 2050 89 110 107 388 33 494 30 Move 45890 | 32 1472 932 300 452 1989 6562 1036 1098 1027 896 2624 1072 897 107 793 3263 990 968 153 808 3825 2039 86 1082 2442 1645 420 402 855 2450 622 1553 998 Hop 72 | . 1 4 . 2 9 16 . 1 . . 3 . . . . 11 . . . . 7 . . . 10 2 . . . 6 . . . Pick Up 109 | . 7 . . 1 2 15 2 3 . 1 5 2 . . . 7 . . . . 5 9 . 1 2 17 4 . 2 11 4 6 3 Fast Attach 124 | 6 9 . . . 10 16 . . 8 . 6 3 . . . 19 . . 2 . 8 2 . 1 8 1 5 . 1 6 1 12 . Attach 13 | . 3 . . 1 . . . . . . . 1 . . . . . . . . . . . . . 3 . . . 1 . 2 2 Detach 45 | . . . . . . 7 . . 6 . 3 . . . . 4 . . . . 2 1 . 1 3 3 1 . 1 1 1 9 2 Swap 171 | 2 15 2 2 . 5 13 . 1 5 1 8 4 . . . 17 1 . 2 . 15 6 . 4 9 12 5 3 3 12 2 18 4 Drop 191 | . 13 . 4 . 8 24 2 3 1 2 10 3 . . . 19 . . 1 . 17 11 . 1 7 26 3 1 2 17 5 8 3 Fire 289 | 2 142 30 . 3 . . . . . . . . . . . . . . . . . 22 . . . 1 3 4 1 3 . 64 14 Melee 2200 | . . . . 5 142 221 18 35 2 34 113 18 18 . 33 186 34 23 . 29 314 199 2 124 95 94 16 15 101 140 34 122 33 Ram . | . . . . . . . . . . . . . . . . . . . . . . . . . . . . . . . . . . Kick . | . . . . . . . . . . . . . . . . . . . . . . . . . . . . . . . . . . Crush . | . . . . . . . . . . . . . . . . . . . . . . . . . . . . . . . . . . Escape Stasis 79 | . . . . . . . . . . . . . . . . 6 . . . . . 47 . . 1 . . . . 10 . 15 . Rewire 2 | . . . . . . . . . . . . . . . . . . . . . . . . . . . . . . . . 2 . Trap . | . . . . . . . . . . . . . . . . . . . . . . . . . . . . . . . . . . Miscellaneous 915 | . 44 12 . 2 48 120 10 27 . 27 42 8 5 . 21 71 24 6 . 15 100 47 . 19 46 56 14 3 19 61 15 19 34 Route ------- -11/Scrapyard -10/Materials (discovered 5 exits: *Mat x3 / *Min / *Sub) -10/Mines (discovered 4 exits: *Mat x2 / *Exi / Sub) -10/Exiles (discovered 2 exits: *Min x2) -9/Mines (discovered 2 exits: *Mat x2) -8/Materials (discovered 4 exits: *Fac x3 / *Sto) -7/Factory (discovered 6 exits: *Fac x4 / *Low x2) -7/Lower Caves -7/Lower Caves (discovered 2 exits: *Fac / *Zio) -7/Zion -6/Proximity Caves -6/Factory (discovered 8 exits: *Fac x4 / *Low x2 / *Ext x2) -6/Lower Caves -6/Lower Caves (discovered 2 exits: *Fac / *Dat) -6/Data Miner -5/Proximity Caves -5/Factory (discovered 6 exits: *Fac x4 / *Upp x2) -5/Upper Caves -5/Upper Caves (discovered 2 exits: *Fac / *Zhi) -5/Zhirov -4/Proximity Caves -4/Factory (discovered 7 exits: *Res x4 / *Upp x2 / Gar) -4/Garrison (discovered 3 exits: *Fac x3) -4/Factory -4/Garrison (discovered 3 exits: *Res x3) -3/Research (discovered 6 exits: *Res x3 / *Arm / *Qua x2) -3/Armory (discovered 3 exits: Res x2 / *Lab) -3/Lab -2/Research (discovered 3 exits: Tes x2 / Gar) -2/Garrison (discovered 3 exits: *Res x3) -2/Research (discovered 5 exits: *Acc x3 / *Tes x2) -1/Access (discovered 3 exits: *Sur / Com / Gar) -1/Garrison (discovered 3 exits: [*Acc x3]) -1/Access History --------- Turn | Location | Event 5 | -11/Scrapyard | Upgraded with Propulsion slot (x1) 5 | -11/Scrapyard | Upgraded with Utility slot (x1) 5 | -11/Scrapyard | Upgraded with Weapon slot (x2) 15 | -11/Scrapyard | Discovered new exit (range 16) 46 | -11/Scrapyard | Entered Materials 253 | -10/Materials | Discovered new exit (range 11) 370 | -10/Materials | Build established: Gunner 462 | -10/Materials | Discovered new exit (range 16) 505 | -10/Materials | Reached level 2 720 | -10/Materials | Build established: Scavenger-Gunner 846 | -10/Materials | Core integrity fell below 50% 855 | -10/Materials | Reached level 3 907 | -10/Materials | Upgraded with Propulsion slot (x1) 913 | -10/Materials | Upgraded with Propulsion slot (x1) 940 | -10/Materials | Upgraded with Weapon slot (x1) 1016 | -10/Materials | Discovered new exit (range 14) 1141 | -10/Materials | Identified exit to Mines 1182 | -10/Materials | Discovered new exit (range 16) 1204 | -10/Materials | Reached level 4 1234 | -10/Materials | Build established: Scavenger-Sprinter 1359 | -10/Materials | Upgraded with Utility slot (x1) 1370 | -10/Materials | Discovered new exit (range 9) 1372 | -10/Materials | Identified exit to Subcaves 1413 | -10/Materials | Identified exit to Materials 1443 | -10/Materials | Entered Mines 1445 | -10/Mines | Reached level 5 1491 | -10/Mines | Discovered exit to Materials (range 6) 1526 | -10/Mines | Deemed a non-threat by the Exiles lab entrance 1526 | -10/Mines | Discovered new exit (range 5) 1527 | -10/Mines | Identified exit to Exiles 1536 | -10/Mines | Discovered exit to Materials (range 16) 1587 | -10/Mines | Assembled infested the area 1632 | -10/Mines | Met 8R-AWN 1674 | -10/Mines | Learned Materials terminal intel 1710 | -10/Mines | Received a Mining Laser from a helpful Derelict 1725 | -10/Mines | Discovered exit to Subcaves (range 11) 1798 | -10/Mines | Met a Derelict who couldn't figure out how to use a Trap Extractor 1836 | -10/Mines | Reached level 6 2036 | -10/Mines | Entered Exiles 2036 | -10/Exiles | Accompanied by 2 allies 2043 | -10/Exiles | Discovered new exit (range 15) 2047 | -10/Exiles | Identified exit to Mines 2055 | -10/Exiles | Welcomed by 8R-AWN 2060 | -10/Exiles | Met EX-HEX 2066 | -10/Exiles | Led the pair of lost Derelicts to a safe place 2073 | -10/Exiles | Met EX-BIN 2089 | -10/Exiles | Aligned with FarCom system 2089 | -10/Exiles | Given EX-Vault access code 2097 | -10/Exiles | Opened EX-Vault 2099 | -10/Exiles | Found Longsword +1 2111 | -10/Exiles | Warned to stay clear of 0b10 Research branches 2120 | -10/Exiles | Met EX-DEC 2131 | -10/Exiles | Discovered exit to Mines (range 10) 2138 | -10/Exiles | Left Exiles lab with Longsword +1 2138 | -10/Exiles | Entered Mines 2168 | -9/Mines | Received a Rocket Launcher from a helpful Derelict 2229 | -9/Mines | Found DCF Scrap (11 items) 2249 | -9/Mines | Discovered new exit (range 12) 2260 | -9/Mines | Identified exit to Materials 2278 | -9/Mines | Discovered exit to Materials (range 15) 2309 | -9/Mines | Entered Materials 2310 | -8/Materials | Identified exit to Factory 2310 | -8/Materials | Upgraded with Utility slot (x1) 2311 | -8/Materials | Loaded intel: 12 terminal locations 2311 | -8/Materials | Reached level 7 2321 | -8/Materials | Discovered new exit (range 15) 2327 | -8/Materials | Identified exit to Storage 2334 | -8/Materials | Reached level 8 2491 | -8/Materials | Upgraded with Power slot (x1) 2491 | -8/Materials | Upgraded with Utility slot (x1) 2510 | -8/Materials | Reached level 9 2613 | -8/Materials | Upgraded with Weapon slot (x1) 2755 | -8/Materials | Discovered exit to Factory (range 15) 2782 | -8/Materials | Build established: Hacker-Sprinter 2804 | -8/Materials | Reached level 10 3052 | -8/Materials | Discovered exit to Factory (range 7) 3076 | -8/Materials | Core integrity fell below 50% 3139 | -8/Materials | Core integrity fell below 20% 3349 | -8/Materials | Reached level 11 3394 | -8/Materials | Upgraded with Utility slot (x1) 4071 | -8/Materials | Entered Factory 4071 | -7/Factory | Accompanied by 2 allies 4073 | -7/Factory | Reached level 12 4073 | -7/Factory | Upgraded with Utility slot (x1) 4248 | -7/Factory | Identified exit to Lower Caves 4365 | -7/Factory | Discovered new exit (range 5) 4366 | -7/Factory | Identified exit to Factory 4633 | -7/Factory | Discovered exit to Factory (range 12) 4652 | -7/Factory | Reached level 13 4726 | -7/Factory | Upgraded with Utility slot (x1) 4766 | -7/Factory | Fabricated Actuator Array? 5053 | -7/Factory | Reached level 14 5055 | -7/Factory | Upgraded with Propulsion slot (x1) 5096 | -7/Factory | Discovered exit to Factory (range 14) 5101 | -7/Factory | Destroyed 7 combat bots 5102 | -7/Factory | Cargo convoy interrupted 5189 | -7/Factory | Discovered exit to Factory (range 14) 5391 | -7/Factory | Reached level 15 5456 | -7/Factory | Repaired Cesium-ion Thruster+ 5496 | -7/Factory | Repaired Cesium-ion Thruster+ 5535 | -7/Factory | Repaired Cesium-ion Thruster+ 5575 | -7/Factory | Repaired Scythe+ 5760 | -7/Factory | Fabricated Nuclear Pulse Thruster? 5762 | -7/Factory | Fabricated Nuclear Pulse Thruster? 5903 | -7/Factory | Fabricated Nuclear Pulse Thruster? 5976 | -7/Factory | Fabricated Microactuators? 6471 | -7/Factory | First assault squad dispatched 6594 | -7/Factory | Build established: Machinist-Sprinter 6621 | -7/Factory | Reached level 16 6820 | -7/Factory | Core integrity fell below 50% 6868 | -7/Factory | Destroyed 9 combat bots 7016 | -7/Factory | Entered Lower Caves 7197 | -7/Lower Caves | Discovered new exit (range 14) 7201 | -7/Lower Caves | Identified exit to Lower Caves 7230 | -7/Lower Caves | Learned 8 Factory zone layouts 7233 | -7/Lower Caves | Learned Factory non-interactive machine intel 7243 | -7/Lower Caves | Learned Factory stockpile data 7251 | -7/Lower Caves | Spotted B-75 Beast 7266 | -7/Lower Caves | Destroyed B-75 Beast 7347 | -7/Lower Caves | Entered another Lower Caves area 7349 | -7/Lower Caves | Reached level 17 7360 | -7/Lower Caves | Discovered exit to Factory (range 13) 7385 | -7/Lower Caves | Encountered a Warlord checkpoint 7447 | -7/Lower Caves | Attracted the attention of an 0b10 checkpoint 7477 | -7/Lower Caves | Attracted the attention of an 0b10 outpost 7623 | -7/Lower Caves | Spotted B-75 Beast 7623 | -7/Lower Caves | Discovered new exit (range 5) 7625 | -7/Lower Caves | Identified exit to Zion 7631 | -7/Lower Caves | Destroyed B-75 Beast 7642 | -7/Lower Caves | Learned location of 1 exit from Factory 7710 | -7/Lower Caves | Learned location of Extension (-6) 7813 | -7/Lower Caves | Entered Zion 7828 | -7/Zion | Discovered new exit (range 10) 7831 | -7/Zion | Identified exit to Proximity Caves 7869 | -7/Zion | System corruption cleaned by Quarantine Array 7888 | -7/Zion | Found CR-A16's Pointy Stick 7928 | -7/Zion | Learned Factory emergency access door positions 7951 | -7/Zion | Found Prototype Hackware 7951 | -7/Zion | Identified Exp. System Shield 7955 | -7/Zion | Found Prototype Processor 7955 | -7/Zion | Identified Exp. Armor Integrity Analyzer 7957 | -7/Zion | Found Prototype Processor 7957 | -7/Zion | Identified Exp. Terrain Scan Processor 7959 | -7/Zion | Found Prototype Processor 7959 | -7/Zion | Identified Exp. Core Analyzer 7962 | -7/Zion | Found Prototype Processor 7962 | -7/Zion | Identified Exp. Melee Analysis Suite 7964 | -7/Zion | Found Prototype Processor 7964 | -7/Zion | Identified Exp. Targeting Computer 8033 | -7/Zion | System corruption cleaned by Quarantine Array 8112 | -7/Zion | Learned location of Warlord (-4) 8157 | -7/Zion | Upgraded with Propulsion slot (x1) 8191 | -7/Zion | Entered Proximity Caves 8261 | -6/Proximity Caves | Reached level 18 8330 | -6/Proximity Caves | Discovered exit to Factory (range 8) 8331 | -6/Proximity Caves | Attracted the attention of an 0b10 checkpoint 8417 | -6/Proximity Caves | Spotted B-75 Beast 8429 | -6/Proximity Caves | Destroyed B-75 Beast 8456 | -6/Proximity Caves | Learned Factory emergency access door positions 8554 | -6/Proximity Caves | Entered Factory 8555 | -6/Factory | Identified exit to Factory 8559 | -6/Factory | Loaded intel: 214 non-interactive machine locations 8759 | -6/Factory | Repaired Broken Nuclear Pulse Thruster+ 8806 | -6/Factory | Discovered exit to Factory (range 14) 8815 | -6/Factory | Identified exit to Lower Caves 8815 | -6/Factory | Identified exit to Extension 8830 | -6/Factory | Reached level 19 8832 | -6/Factory | Upgraded with Utility slot (x1) 8867 | -6/Factory | Build established: Hacker-Sprinter 9015 | -6/Factory | Unchained authorized (GL-D0S) 9030 | -6/Factory | Discovered exit to Factory (range 16) 9134 | -6/Factory | Fabricated Force Field (x2) 9213 | -6/Factory | Spotted B-75 Beast 9220 | -6/Factory | Destroyed B-75 Beast 9263 | -6/Factory | Fabricated Lgt. Fission Core (x2) 9556 | -6/Factory | Build established: Machinist-Sprinter 9624 | -6/Factory | Destroyed 7 combat bots 9729 | -6/Factory | Entered Lower Caves 9729 | -6/Lower Caves | Accompanied by 1 ally 9837 | -6/Lower Caves | Spotted B-75 Beast 9848 | -6/Lower Caves | Reached level 20 9848 | -6/Lower Caves | Destroyed B-75 Beast 9900 | -6/Lower Caves | Attracted the attention of an 0b10 checkpoint 9911 | -6/Lower Caves | Learned Factory stockpile data 9959 | -6/Lower Caves | Discovered new exit (range 7) 9960 | -6/Lower Caves | Identified exit to Lower Caves 9973 | -6/Lower Caves | Found Alien Artifact 9973 | -6/Lower Caves | Identified Core Expander 9973 | -6/Lower Caves | Installed Core Expander, added new Utility slot 10089 | -6/Lower Caves | Entered another Lower Caves area 10089 | -6/Lower Caves | Accompanied by 1 ally 10109 | -6/Lower Caves | Discovered exit to Factory (range 15) 10215 | -6/Lower Caves | Entered an active Warlord outpost 10220 | -6/Lower Caves | A Commander dispatched an escort 10220 | -6/Lower Caves | Learned Armory security intel 10255 | -6/Lower Caves | Attracted the attention of an 0b10 checkpoint 10321 | -6/Lower Caves | Discovered new exit (range 14) 10325 | -6/Lower Caves | Identified exit to Data Miner 10403 | -6/Lower Caves | Entered Data Miner 10403 | -6/Data Miner | Accompanied by 4 allies 10403 | -6/Data Miner | Discovered new exit (range 6) 10404 | -6/Data Miner | Commander's escort returned to base 10404 | -6/Data Miner | Commander's escort returned to base 10404 | -6/Data Miner | Commander's escort returned to base 10405 | -6/Data Miner | Identified exit to Proximity Caves 10411 | -6/Data Miner | Met Data Miner 10421 | -6/Data Miner | Learned location of Section 7 (-3) 10421 | -6/Data Miner | Acquired the access code to Warlord's prototype stash 10424 | -6/Data Miner | Received God Mode back door access code from Data Miner 10618 | -6/Data Miner | Entered Proximity Caves 10618 | -5/Proximity Caves | Accompanied by 1 ally 10652 | -5/Proximity Caves | Reached level 21 10653 | -5/Proximity Caves | Attracted the attention of an 0b10 base 10671 | -5/Proximity Caves | Learned Factory stockpile data 10671 | -5/Proximity Caves | Learned Factory garrison access intel 10701 | -5/Proximity Caves | Learned Factory emergency access door positions 10704 | -5/Proximity Caves | Destroyed 11 combat bots 10716 | -5/Proximity Caves | Attracted the attention of an 0b10 checkpoint 10829 | -5/Proximity Caves | Learned location of 1 exit from Factory 11088 | -5/Proximity Caves | Received a Behemoth hack from an annoying Tinkerer 11260 | -5/Proximity Caves | Entered Factory 11261 | -5/Factory | Identified exit to Factory 11262 | -5/Factory | Identified exit to Upper Caves 11262 | -5/Factory | Reached level 22 11263 | -5/Factory | Upgraded with Propulsion slot (x1) 11265 | -5/Factory | Loaded intel: 3 garrison access locations 11421 | -5/Factory | Unchained authorized (GL-D0S) 11468 | -5/Factory | Spotted B-75 Beast 11471 | -5/Factory | Destroyed B-75 Beast 11656 | -5/Factory | Build established: Hacker-Sprinter 11671 | -5/Factory | Fabricated Nanoactuators (x2) 11781 | -5/Factory | Destroyed GL-D0S 11791 | -5/Factory | Garrison activated, responded to threat 11794 | -5/Factory | Found ID Mask 11794 | -5/Factory | ID Mask engaged 11860 | -5/Factory | Found Prototype Device 11860 | -5/Factory | Identified Exp. Sensor Array 11869 | -5/Factory | ID Mask no longer valid 11900 | -5/Factory | Reached level 23 11901 | -5/Factory | Upgraded with Utility slot (x1) 12156 | -5/Factory | Destroyed 8 combat bots 12160 | -5/Factory | First assault squad dispatched 12302 | -5/Factory | Build established: Machinist-Sprinter 12755 | -5/Factory | Destroyed 17 combat bots 12799 | -5/Factory | Fabricated O-24 Administrator (x1) 12801 | -5/Factory | Fabricated O-24 Administrator? 12845 | -5/Factory | Build established: Wizard-Sprinter 12846 | -5/Factory | Entered Upper Caves 12846 | -5/Upper Caves | Accompanied by 2 allies 12875 | -5/Upper Caves | Learned location of 1 exit from Factory 12892 | -5/Upper Caves | Attracted the attention of an 0b10 checkpoint 12896 | -5/Upper Caves | Reached level 24 12930 | -5/Upper Caves | Attracted the attention of an 0b10 outpost 12958 | -5/Upper Caves | Encountered a Warlord checkpoint 12959 | -5/Upper Caves | Destroyed 15 combat bots 13013 | -5/Upper Caves | Destroyed 8 combat bots 13018 | -5/Upper Caves | Discovered new exit (range 14) 13158 | -5/Upper Caves | Entered another Upper Caves area 13158 | -5/Upper Caves | Accompanied by 2 allies 13170 | -5/Upper Caves | Discovered exit to Factory (range 5) 13226 | -5/Upper Caves | Attracted the attention of an 0b10 outpost 13244 | -5/Upper Caves | Spotted B-75 Beast 13247 | -5/Upper Caves | Destroyed B-75 Beast 13276 | -5/Upper Caves | Destroyed 7 combat bots 13303 | -5/Upper Caves | Discovered new exit (range 9) 13425 | -5/Upper Caves | Entered Zhirov 13425 | -5/Zhirov | Accompanied by 2 allies 13425 | -5/Zhirov | Discovered new exit (range 3) 13430 | -5/Zhirov | Met Zhirov 13456 | -5/Zhirov | Learned location of Quarantine (-3) 13456 | -5/Zhirov | Learned location of Testing (-2) 13456 | -5/Zhirov | Learned location of Command (-1) 13460 | -5/Zhirov | Zhirov requested help retrieving the SGEMP Prototype 13463 | -5/Zhirov | Found Alien Artifact 13463 | -5/Zhirov | Identified Integrated Dissipator 13463 | -5/Zhirov | Installed Integrated Dissipator, increased core heat dissipation (+20) 13508 | -5/Zhirov | Entered Proximity Caves 13508 | -4/Proximity Caves | Accompanied by 2 allies 13587 | -4/Proximity Caves | Reached level 25 13598 | -4/Proximity Caves | Discovered exit to Factory (range 12) 13614 | -4/Proximity Caves | Spotted B-86 Titan 13626 | -4/Proximity Caves | Destroyed B-86 Titan 13684 | -4/Proximity Caves | Destroyed 8 combat bots 13757 | -4/Proximity Caves | Entered Factory 13757 | -4/Factory | Accompanied by 2 allies 13758 | -4/Factory | Identified exit to Upper Caves 13775 | -4/Factory | Upgraded with Utility slot (x1) 13927 | -4/Factory | Destroyed 7 combat bots 14010 | -4/Factory | Spotted B-86 Titan 14026 | -4/Factory | Reached level 26 14030 | -4/Factory | Destroyed B-86 Titan 14051 | -4/Factory | Destroyed 9 combat bots 14136 | -4/Factory | Discovered new exit (range 5) 14195 | -4/Factory | Identified exit to Research 14237 | -4/Factory | Spotted B-86 Titan 14250 | -4/Factory | Destroyed B-86 Titan 14278 | -4/Factory | Destroyed 8 combat bots 14396 | -4/Factory | Fabricated Diametric Drive? 14430 | -4/Factory | Destroyed 11 combat bots 14449 | -4/Factory | Garrison activated, responded to threat 14487 | -4/Factory | Fabricated Diametric Drive? 14661 | -4/Factory | Discovered exit to Upper Caves (range 15) 14673 | -4/Factory | Reached level 27 14950 | -4/Factory | Unchained authorized (DW-4LL) 15006 | -4/Factory | Fabricated Diametric Drive? 15086 | -4/Factory | DW-4LL burst out of a wall 15100 | -4/Factory | Destroyed DW-4LL 15126 | -4/Factory | Fabricated Diametric Drive? 15257 | -4/Factory | First assault squad dispatched 15344 | -4/Factory | Fabricated Diametric Drive? 15397 | -4/Factory | Unchained authorized (QV-33N) 15515 | -4/Factory | Garrison activated, responded to threat 15615 | -4/Factory | Destroyed 18 combat bots 15742 | -4/Factory | Reached level 28 15747 | -4/Factory | Identified exit to Garrison 15747 | -4/Factory | Entered Garrison 15763 | -4/Garrison | Destroyed 10 combat bots 16098 | -4/Garrison | Spotted B-86 Titan 16103 | -4/Garrison | Triggered checkpoint 16113 | -4/Garrison | Triggered checkpoint 16213 | -4/Garrison | Core integrity fell below 50% 16214 | -4/Garrison | Destroyed B-86 Titan 16236 | -4/Garrison | Destroyed 12 combat bots 16314 | -4/Garrison | Installed Relay Interface Framework 16316 | -4/Garrison | Discovered new exit (range 14) 16354 | -4/Garrison | Triggered checkpoint 16364 | -4/Garrison | Expanded RIF knowledge: Signal Jamming 16411 | -4/Garrison | Triggered checkpoint 16474 | -4/Garrison | Discovered new exit (range 13) 16474 | -4/Garrison | Spotted B-75 Beast 16474 | -4/Garrison | Spotted B-86 Titan 16494 | -4/Garrison | Rescued a captive Derelict 16499 | -4/Garrison | Triggered checkpoint 16505 | -4/Garrison | Garrison Relay disabled 16535 | -4/Garrison | Discovered new exit (range 3) 16547 | -4/Garrison | Triggered checkpoint 16571 | -4/Garrison | Garrison Relay disabled 16627 | -4/Garrison | Phase Generator disabled 16662 | -4/Garrison | Garrison Relay disabled 16673 | -4/Garrison | Triggered checkpoint 16988 | -4/Garrison | Found Relay Coupler [Proto] 17018 | -4/Garrison | Entered Factory 17063 | -4/Factory | Identified exit to Garrison 17063 | -4/Factory | Entered Garrison 17079 | -4/Garrison | Triggered checkpoint 17118 | -4/Garrison | Garrison Relay disabled 17127 | -4/Garrison | Spotted B-86 Titan 17270 | -4/Garrison | Destroyed 9 combat bots 17276 | -4/Garrison | Destroyed B-86 Titan 17347 | -4/Garrison | Garrison Relay disabled 17356 | -4/Garrison | Discovered exit to Research (range 11) 17365 | -4/Garrison | Spotted Executioner 17365 | -4/Garrison | Spotted Executioner 17373 | -4/Garrison | Triggered checkpoint 17387 | -4/Garrison | Expanded RIF knowledge: Program Shield 17392 | -4/Garrison | Discovered exit to Research (range 12) 17459 | -4/Garrison | Triggered checkpoint 17462 | -4/Garrison | Triggered checkpoint 17465 | -4/Garrison | Garrison Relay disabled 17471 | -4/Garrison | Garrison Relay disabled 17478 | -4/Garrison | Destroyed 7 combat bots 17549 | -4/Garrison | Discovered exit to Research (range 10) 17560 | -4/Garrison | Garrison Relay disabled 17578 | -4/Garrison | Entered Research 17579 | -3/Research | Identified exit to Armory 17580 | -3/Research | Reached level 29 17635 | -3/Research | Identified exit to Research 17635 | -3/Research | Exp. System Shield fried by hacking feedback 17689 | -3/Research | Discovered new exit (range 16) 17753 | -3/Research | Spotted B-86 Titan 17778 | -3/Research | Identified exit to Quarantine 17781 | -3/Research | Unchained authorized (QV-33N) 17782 | -3/Research | Spotted B-86 Titan 17828 | -3/Research | First assault squad dispatched 17845 | -3/Research | Found Prototype Device 17845 | -3/Research | Identified Exp. ECM Suite 17851 | -3/Research | Destroyed 12 combat bots 17990 | -3/Research | Core integrity fell below 50% 18005 | -3/Research | Core integrity fell below 20% 18049 | -3/Research | Destroyed 8 combat bots 18139 | -3/Research | Destroyed 7 combat bots 18154 | -3/Research | High security lockdown imminent 18162 | -3/Research | Reached level 30 18207 | -3/Research | Entered Armory 18707 | -3/Armory | First assault squad dispatched 18733 | -3/Armory | Incoming assault squad redirected 20069 | -3/Armory | Spotted B-86 Titan 20100 | -3/Armory | Incoming investigation squad redirected 20133 | -3/Armory | Fabricated Diametric Drive? 20259 | -3/Armory | Energy Cycler disabled 20292 | -3/Armory | Fabricated Femtoactuators? 20314 | -3/Armory | Destroyed 9 combat bots 20373 | -3/Armory | Destroyed 7 combat bots 20450 | -3/Armory | Adv. System Shield fried by hacking feedback 20700 | -3/Armory | Spotted Armor Guard 20700 | -3/Armory | Spotted Armor Guard 20710 | -3/Armory | Discovered new exit (range 4) 20712 | -3/Armory | Entered Lab 20712 | -3/Lab | Discovered exit to Research (range 10) 20714 | -3/Lab | Reached level 31 20714 | -3/Lab | Unable to decrypt terminal 20714 | -3/Lab | Opened the door to a hidden lab 20714 | -3/Lab | Detected by scanners 20715 | -3/Lab | Gained access to the hidden lab's interior 20715 | -3/Lab | Unable to decrypt terminal 20723 | -3/Lab | Found Prototype Hackware 20723 | -3/Lab | Identified Quantum Router 20737 | -3/Lab | Confronted by A5 20740 | -3/Lab | Found Prototype Special Weapon 20740 | -3/Lab | Identified Gui. Remote Datajack 20778 | -3/Lab | Destroyed A5 20783 | -3/Lab | Found Exp. Hacking Suite 20791 | -3/Lab | Unable to decrypt terminal 20791 | -3/Lab | Unable to decrypt terminal 20791 | -3/Lab | Unable to decrypt terminal 20814 | -3/Lab | Found Core Expander 20818 | -3/Lab | Found Alien Artifact 20818 | -3/Lab | Identified Integrated Mediator 20818 | -3/Lab | Installed Integrated Mediator, increased core attachment efficiency 20821 | -3/Lab | Found Alien Artifact 20821 | -3/Lab | Identified Transdimensional Reconstructor 20821 | -3/Lab | Warped through subspace 20901 | -3/Lab | Unable to decrypt terminal 20904 | -3/Lab | Unable to decrypt terminal 20913 | -3/Lab | Entered Research 20970 | -2/Research | Identified exit to Testing 20973 | -2/Research | Spotted B-90 Cyclops 21077 | -2/Research | Unchained authorized (QV-33N) 21079 | -2/Research | Spotted B-90 Cyclops 21103 | -2/Research | Identified exit to Garrison 21104 | -2/Research | Entered Garrison 21104 | -2/Garrison | Accompanied by 1 ally 21127 | -2/Garrison | Reached level 32 21130 | -2/Garrison | Rescued a captive Derelict 21151 | -2/Garrison | Spotted B-90 Cyclops 21169 | -2/Garrison | Destroyed B-90 Cyclops 21184 | -2/Garrison | Garrison Relay disabled 21202 | -2/Garrison | Destroyed 11 combat bots 21222 | -2/Garrison | Triggered checkpoint 21238 | -2/Garrison | Triggered checkpoint 21242 | -2/Garrison | Expanded RIF knowledge: Code Merge 21250 | -2/Garrison | Triggered checkpoint 21255 | -2/Garrison | Found embedded Infiltrators 21262 | -2/Garrison | Discovered new exit (range 14) 21358 | -2/Garrison | Discovered new exit (range 10) 21362 | -2/Garrison | Triggered checkpoint 21388 | -2/Garrison | Discovered new exit (range 64) 21388 | -2/Garrison | Discovered new exit (range 51) 21388 | -2/Garrison | Discovered new exit (range 24) 21388 | -2/Garrison | Identified exit to Research 21425 | -2/Garrison | Destroyed 15 combat bots 21459 | -2/Garrison | Garrison Relay disabled 21474 | -2/Garrison | Entered Research 21474 | -2/Research | Accompanied by 1 ally 21505 | -2/Research | Exp. Hacking Suite fried by hacking feedback 21559 | -2/Research | Identified exit to Access 21817 | -2/Research | Intercept squad dispatched 21832 | -2/Research | Spotted B-90 Cyclops 21855 | -2/Research | Spotted Tracker 21855 | -2/Research | Spotted Tracker 21868 | -2/Research | Destroyed Tracker 21872 | -2/Research | Destroyed Tracker 21876 | -2/Research | Found Prototype Device 21876 | -2/Research | Identified Exp. Phase Shifter 21896 | -2/Research | Spotted Combat Programmer 21904 | -2/Research | Destroyed Combat Programmer 21918 | -2/Research | Spotted Combat Programmer 21919 | -2/Research | Destroyed Combat Programmer 21920 | -2/Research | Intercept squad dispatched 21952 | -2/Research | Spotted Tracker 21953 | -2/Research | Spotted Tracker 21954 | -2/Research | Garrison activated, responded to threat 21955 | -2/Research | Destroyed Tracker 21958 | -2/Research | Destroyed Tracker 22006 | -2/Research | Spotted Combat Programmer 22027 | -2/Research | Found Prototype Device 22057 | -2/Research | Reached level 33 22066 | -2/Research | Found Exp. Hacking Suite 22084 | -2/Research | Spotted Combat Programmer 22089 | -2/Research | Destroyed Combat Programmer 22131 | -2/Research | Intercept squad dispatched 22134 | -2/Research | Fabricated Exp. Actuator Array? 22147 | -2/Research | System corruption reached 10% 22168 | -2/Research | Spotted Tracker 22172 | -2/Research | Spotted Tracker 22172 | -2/Research | Destroyed Tracker 22176 | -2/Research | Destroyed Tracker 22221 | -2/Research | Spotted Combat Programmer 22226 | -2/Research | Destroyed Combat Programmer 22250 | -2/Research | Spotted Combat Programmer 22253 | -2/Research | Destroyed Combat Programmer 22258 | -2/Research | Identified Exp. Transmission Jammer 22267 | -2/Research | Spotted B-90 Cyclops 22296 | -2/Research | Garrison activated, responded to threat 22308 | -2/Research | Destroyed B-90 Cyclops 22331 | -2/Research | Destroyed 10 combat bots 22339 | -2/Research | Fabricated Exp. Core Analyzer? 22357 | -2/Research | Intercept squad dispatched 22374 | -2/Research | Spotted Tracker 22375 | -2/Research | Spotted Tracker 22379 | -2/Research | Destroyed Tracker 22384 | -2/Research | Destroyed Tracker 22408 | -2/Research | Spotted Combat Programmer 22410 | -2/Research | Destroyed Combat Programmer 22434 | -2/Research | Destroyed 19 combat bots 22436 | -2/Research | Spotted Combat Programmer 22446 | -2/Research | Destroyed Combat Programmer 22463 | -2/Research | Spotted B-90 Cyclops 22474 | -2/Research | First assault squad dispatched 22479 | -2/Research | Entered Access 22481 | -1/Access | Reached level 34 22496 | -1/Access | Identified exit to Surface 22499 | -1/Access | Identified exit to Command 22531 | -1/Access | Intercept squad dispatched 22533 | -1/Access | Spotted Tracker 22534 | -1/Access | Spotted Tracker 22536 | -1/Access | Destroyed Tracker 22537 | -1/Access | Spotted Combat Programmer 22537 | -1/Access | Destroyed Tracker 22540 | -1/Access | Garrison activated, responded to threat 22542 | -1/Access | Destroyed Combat Programmer 22591 | -1/Access | Destroyed 10 combat bots 22610 | -1/Access | Spotted Combat Programmer 22617 | -1/Access | Destroyed Combat Programmer 22640 | -1/Access | Garrison activated, responded to threat 22650 | -1/Access | Identified exit to Garrison 22656 | -1/Access | Entered Garrison 22683 | -1/Garrison | Found embedded Infiltrators 22694 | -1/Garrison | Reached level 35 22746 | -1/Garrison | Triggered checkpoint 22753 | -1/Garrison | Garrison Relay disabled 22754 | -1/Garrison | Triggered checkpoint 22820 | -1/Garrison | Spotted B-99 Colossus 22821 | -1/Garrison | Triggered checkpoint 22830 | -1/Garrison | Triggered checkpoint 22836 | -1/Garrison | Destroyed B-99 Colossus 22842 | -1/Garrison | Triggered checkpoint 22854 | -1/Garrison | Triggered checkpoint 22878 | -1/Garrison | Garrison Relay disabled 22890 | -1/Garrison | Discovered new exit (range 15) 22893 | -1/Garrison | Learned Access security intel 22894 | -1/Garrison | Spotted Striker 22930 | -1/Garrison | Discovered new exit (range 14) 22972 | -1/Garrison | Triggered checkpoint 22997 | -1/Garrison | Garrison Relay disabled 23001 | -1/Garrison | Garrison Relay disabled 23008 | -1/Garrison | Triggered checkpoint 23047 | -1/Garrison | Discovered new exit (range 12) 23067 | -1/Garrison | Garrison Relay disabled 23067 | -1/Garrison | Reached level 36 23074 | -1/Garrison | Triggered checkpoint 23112 | -1/Garrison | Lost 5 allies 23167 | -1/Garrison | Phase Generator disabled 23182 | -1/Garrison | Triggered checkpoint 23184 | -1/Garrison | Garrison Relay disabled 23188 | -1/Garrison | Expanded RIF knowledge: Autoassimilate 23283 | -1/Garrison | Build established: Commander-Sprinter 23696 | -1/Garrison | Entered Access 23696 | -1/Access | Accompanied by 28 allies 23728 | -1/Access | Spotted B-99 Colossus 23744 | -1/Access | Destroyed B-99 Colossus 23757 | -1/Access | High security lockdown imminent 23786 | -1/Access | Intercept squad dispatched 23798 | -1/Access | Spotted Tracker 23800 | -1/Access | Spotted Tracker 23807 | -1/Access | Destroyed Tracker 23816 | -1/Access | Allies destroyed Tracker 23835 | -1/Access | Spotted Combat Programmer 23837 | -1/Access | High security lockdown engaged 23859 | -1/Access | Garrison activated, responded to threat 23861 | -1/Access | Core integrity fell below 50% 23864 | -1/Access | Destroyed Combat Programmer 23870 | -1/Access | System corruption reached 10% 24003 | -1/Access | Intercept squad dispatched 24008 | -1/Access | Spotted B-99 Colossus 24009 | -1/Access | Spotted B-99 Colossus 24025 | -1/Access | Spotted Tracker 24026 | -1/Access | Spotted Tracker 24026 | -1/Access | Spotted Tracker 24031 | -1/Access | Destroyed Tracker 24034 | -1/Access | Core integrity fell below 20% 24034 | -1/Access | Destroyed by Tracker with Linked Autogun Last Messages --------------- Tracker: "THREAT CONFIRMED. DEPLOY COMBAT PROGRAMMER." 24028_ The unstable cave ceiling collapses. Tracker: "THREAT CONFIRMED. DEPLOY COMBAT PROGRAMMER." 24029_ Knocked back. 24029_ Penetrated by Slug. 24029_ Slug penetrates Wall. 24029_ Imp. Diametric Drive temporarily disabled. 24029_ Slug penetrates Wall. 24030_ Imp. Diametric Drive temporarily disabled. 24031_ Tracker destroyed. 24032_ Imp. Diametric Drive temporarily disabled. 24032_ Penetrated by Slug. 24032_ Slug penetrates Wall. 24032_ Penetrated by Slug. 24032_ Slug penetrates Wall. 24033_ The unstable cave ceiling collapses. 24033_ Knocked back. 24033_ Penetrated by Slug. 24033_ Slug penetrates Wall. 24034_ Imp. Diametric Drive temporarily disabled. Map ----- +----------------------------------------------------+ | ???????? # ##???## ""##" " # ???????? | | ???????? # ##???#"""""""""""""# # ???????? | | ???????? # ##?????????????? ### + ???????? | | ???????? # ##?????????????? ### # ???????? | | ########## ##???????????????##"######### ???????? | | ########## ##???????????????##"######### ???????? | | ####?????????????### # ???????? | | ####?????????????### # ???????? | | ""##??????????????## # ???????? | | ]]=""##??????????????## # | | ]=!T"##??????????????## #/+#+##### | | ### =!""##??????????????## # | | ### ""##??????????????## # | | ## ####?##""""""???"### # | | + p####?##"" """""### + | | ##+######+#####?## ### # | | # ##?## ### # | | # ##?## ### + | | # ##?##BB % ### ####+##### | | ## " # ###BB BB ### ## # | | ## """" # # BB ### ## # | | ## """"" # ### * ## # | | ## """"" ;"#### ## # | | ## ? """" s %s ;##### ## # | | ## ? " %###?############ ""# | | ## @;##?############ ""# | | ## %;##???????????## ""# | | ## ;##???????????## G# | | ############ # # ###???????????## ""# | | ## # # ###???????????## ""## | | ??????????? # # ##????????????## ""# | | ??????????? ? # # ##????????????## #= | | ????????????? # # ##????????????## " | | ????????????? # # ##????????????######### | | ????????????? # # ##????????????######### | | ????????????? # ; # ???????????????????## | | ????????????? ######"# # ???????????????????## | | ????????????? ######## # ???????????????????## | | ????????????????????## # ???????????????????## | | ???????????????????? # ???????????????????## | | ?????????????????????? # ???????????????????## | | ?????????????????????? + ???????????????????## | | ???????????????????????????????????????????????### | | ???????????????????????????????????????????????### | | ?????????????????????????????????????????????????# | | ?????????????????????????????????????????????????? | | ?????????????????????????????????????????????????? | | ?????????????????????????????????????????????????? | | ?????????????????????????????????????????????????? | | ?????????????????????????????????????????????????? | +----------------------------------------------------+ Best States ------------- Heat Dissipation 99 Energy Generation 68 Energy Capacity 960 Matter Stores 300 Matter Capacity 300 Sight Range 16 Terrain Scan Density 10 Jamming Range 22 Corruption Block 8 Resistance: KI 20 Resistance: TH 20 Melee Speed Boost 50 Phase Shifting 20 Evasion (%) 99 Targeting Accuracy 6 Core Analysis 8 Offensive Hacking 52 Defensive Hacking 52 Relay Coupler Types 6 Relay Coupler Value 437 Item Schematics ----------------- Actuator Array | -8/Materials | Hacked Force Booster | -8/Materials | Hacked Microactuators | -7/Factory | Hacked Force Field | -7/Factory | Hacked Nuclear Pulse Thruster | -7/Factory | Hacked Lgt. Fission Core | -6/Factory | Hacked Nanoactuators | -6/Data Miner | Free Diametric Drive | -4/Factory | Hacked Exp. Core Analyzer | -3/Research | Hacked Femtoactuators | -3/Research | Hacked Exp. Actuator Array | -2/Research | Hacked Adv. System Restoration Module | -2/Research | Hacked Robot Schematics ------------------ O-24 Administrator | -7/Factory | Hacked Fabricated ------------ Actuator Array | x2 | -7/Factory Nuclear Pulse Thruster | x2 | -7/Factory Nuclear Pulse Thruster | x2 | -7/Factory Nuclear Pulse Thruster | x2 | -7/Factory Microactuators | x2 | -7/Factory Force Field | x2 | -6/Factory Lgt. Fission Core | x2 | -6/Factory Nanoactuators | x2 | -5/Factory O-24 Administrator | x1 | -5/Factory O-24 Administrator | x1 | -5/Factory Diametric Drive | x1 | -4/Factory Diametric Drive | x1 | -4/Factory Diametric Drive | x1 | -4/Factory Diametric Drive | x1 | -4/Factory Diametric Drive | x1 | -4/Factory Diametric Drive | x1 | -3/Armory Femtoactuators | x1 | -3/Armory Exp. Actuator Array | x1 | -2/Research Exp. Core Analyzer | x1 | -2/Research Repaired ---------- Cesium-ion Thruster | 40% | -7/Factory Cesium-ion Thruster | 48% | -7/Factory Cesium-ion Thruster | 48% | -7/Factory Scythe | 58% | -7/Factory Nuclear Pulse Thruster | 63% | -6/Factory | Broken Studied --------- Cesium-ion Thruster | -8/Materials | Hacked Scythe | -7/Factory | Hacked Katana | -7/Factory | Hacked Nuclear Pulse Thruster | -7/Factory | Hacked Lgt. Fission Core | -6/Factory | Hacked Hyb. Fission Core | -5/Factory | Hacked Falx | -5/Factory | Hacked Alien Tech Used ----------------- Core Expander Integrated Dissipator Integrated Mediator Transdimensional Reconstructor Achievements -------------- Assimilation Complete Highlander Infiltrator Join The Dark Side Late Bloomer Let Me Out Of Here Mindtrick Oppo Buddy Total Silence You Will Be Upgraded Challenges ------------ None RPGLIKE | -11 -10 -10 -10 -9 -8 -7 -7 -7 -7 -6 -6 -6 -6 -6 -5 -5 -5 -5 -5 -4 -4 -4 -4 -4 -3 -3 -3 -2 -2 -2 -1 -1 -1 --------- Run | Yrd Mat Min Exi Min Mat Fac Low Low Zio Pro Fac Low Low Dat Pro Fac Upp Upp Zhi Pro Fac Gar Fac Gar Res Arm Lab Res Gar Res Acc Gar Acc Levels Raised 35 | . 3 2 . . 5 5 . 1 . 1 1 1 . . 1 2 1 . . 1 3 . . . 2 . 1 . 1 1 1 2 . XP Earned 56828 | 3000 5918 1623 169 1075 6871 7781 400 592 118 1439 2339 363 290 152 1887 3175 638 341 105 1064 4166 701 17 682 1646 1209 678 842 1272 1408 1821 2122 924 XP Spent 55495 | 2650 3800 . . 2700 7520 7790 . . 1700 . 3590 600 . . . 5220 . . . . 6350 1550 . . 2850 . 1250 . 1100 2225 1500 3100 . Upgrades 67 | 6 4 . . 6 11 10 . . 1 . 4 1 . . . 4 . . . . 4 1 . . 6 . 1 . 1 3 2 2 . Power Slot 1 | . . . . . 1 . . . . . . . . . . . . . . . . . . . . . . . . . . . . Propulsion Slot 6 | 1 2 . . . . 1 . . 1 . . . . . . 1 . . . . . . . . . . . . . . . . . Utility Slot 10 | 1 1 . . . 3 2 . . . . 1 . . . . 1 . . . . 1 . . . . . . . . . . . . Weapon Slot 4 | 2 1 . . . 1 . . . . . . . . . . . . . . . . . . . . . . . . . . . . Heat Dissipation 9 | . . . . . 2 1 . . . . 2 . . . . 2 . . . . . . . . 2 . . . . . . . . Energy Generation 7 | . . . . . . 2 . . . . . . . . . . . . . . 3 1 . . . . . . . 1 . . . Energy Storage 2 | . . . . . . . . . . . . . . . . . . . . . . . . . . . . . . 2 . . . Mass Support 4 | 1 . . . . . . . . . . . 1 . . . . . . . . . . . . . . . . 1 . . 1 . Inventory Capacity 6 | 1 . . . . . 1 . . . . 1 . . . . . . . . . . . . . 1 . 1 . . . . 1 . Melee Accuracy 6 | . . . . 6 . . . . . . . . . . . . . . . . . . . . . . . . . . . . . Hack Attack % 2 | . . . . . 2 . . . . . . . . . . . . . . . . . . . . . . . . . . . . Hack Defense % 2 | . . . . . 2 . . . . . . . . . . . . . . . . . . . . . . . . . . . . KI Resistance % 4 | . . . . . . 2 . . . . . . . . . . . . . . . . . . 1 . . . . . 1 . . TH Resistance % 4 | . . . . . . 1 . . . . . . . . . . . . . . . . . . 2 . . . . . 1 . . Protomatter Created 13417 | . 298 122 . 16 582 1082 191 351 . 252 691 274 129 . 418 1293 231 241 . 197 1531 628 71 809 412 896 71 24 326 1094 511 456 220 Integrity Restored 17267 | . 841 189 . 23 909 2297 186 513 . 527 723 124 94 . 353 1353 434 96 . 253 2037 847 . 211 1006 1095 277 72 316 1161 274 302 754 Core 14065 | . 729 144 . 19 760 1921 157 398 . 435 578 89 61 . 285 1047 355 82 . 226 1615 679 . 167 957 779 195 72 243 940 235 232 665 Parts 3202 | . 112 45 . 4 149 376 29 115 . 92 145 35 33 . 68 306 79 14 . 27 422 168 . 44 49 316 82 . 73 221 39 70 89 Protomatter Decayed 6426 | . 10 100 . 7 175 242 70 195 . 152 424 228 18 . 143 585 78 205 . 109 284 201 . 712 38 85 2 . 54 475 126 816 892 Game ------ Seed DamperHardlightSpear Manual? 0 Play Time 09:37:59 Cumulative 174.9 hours Start 2025.11.13 @ 21:46:21 End 2025.11.15 @ 20:55:01 Sessions 11 Manual Loads 0 Difficulty Rogue Special Mode Winter2019/RPGLIKE Game No. 56 Rogue 56 Adventurer 0 Explorer 0 Win Type - Total 6 Types 2/0/1/3/0/0/0/0/0/0 Lore% 57 Gallery% 55 Achievement% 54 Wizard Run 0 Options --------- Layout 2 ASCII 0 Keyboard 0 Movement Mouse Keybinds 1 Fullscreen 2 Font 20/X11 Map View 64x51 Zoom Use 0% Tactical HUD 1 Map Filters NONE Filters NONE Steam 1 RUN: 717aeedf-0354-44d5-95cf-9e3fe7e0e2e7